{"text_format":"1","workbook":"xlsx","n_sheets":14,"sheets":["PLHA Coverpage","Instructions","Overview","Legislative Contacts ","Annual Operating Budget","Development Info","Rental Development Team","Dev Budget - Navigation Center","Env & Land Use","Certification & Legal","Sponsor Org Docs","Selection Criteria - Scoring","Appplication Support","DATA"],"not_rendered":{"charts":0,"images":1,"macros":1,"external_links":2,"defined_names":1186,"comments":6,"pivot_tables":0},"unopened":[],"bounds":{"document_bytes":16777216,"sheet_cells":100000,"rows_first":2000,"rows_last":500,"rows_between":2000,"halvings":0,"cell_chars":16384,"cell_head_chars":4096},"cells_cut":0,"cells_raw":0,"read":"whole","date_system":"1900"}

{"sheet":"PLHA Coverpage","index":0,"n_rows":46,"n_cols":1,"rows_kept":46,"cut":false,"hidden":false,"merged":[[45,0,45,2],[36,0,36,22],[37,0,37,22],[38,0,38,22],[40,0,40,22],[41,0,41,22],[43,0,43,22],[35,0,35,22],[2,0,2,22],[4,0,4,22],[3,0,3,22],[24,0,24,22],[25,0,25,22],[27,0,27,22],[28,0,28,22],[30,0,30,22],[31,0,31,22],[34,0,34,22]]}
[]
[]
["Permanent Local Housing Allocation (PLHA) Program Non-Entitlement Local Government Competitive Notice of Funding Availability"]
[]
["2020 Supplemental Application"]
[]
[]
[]
[]
[]
[]
[]
[]
[]
[]
[]
[]
[]
[]
[]
[]
[]
[]
[]
["Gavin Newsom, Governor "]
["State of California"]
[]
["Lourdes Castro Ramirez, Secretary"]
["Business, Consumer Services and Housing Agency"]
[]
["Gustavo Velasquez, Director"]
["Department of Housing and Community Development (HCD)"]
[]
[]
["2020 West El Camino Avenue, Suite 500"]
["Sacramento, CA 95833"]
["Phone: (916) 263-2771   "]
["PLHA Program Email: CPLHA@hcd.ca.gov"]
["http://www.hcd.ca.gov/grants-funding/nofas.shtml"]
[]
["Application Technical Support email:"]
["AppSupport@hcd.ca.gov"]
[]
["August 31, 2020"]
[]
["Rev. 9/14/20"]

{"sheet":"Instructions","index":1,"n_rows":37,"n_cols":36,"rows_kept":37,"cut":false,"hidden":true,"merged":[[35,0,35,37],[36,0,36,37],[29,0,29,37],[30,0,30,37],[31,0,31,37],[32,0,32,37],[33,0,33,37],[34,0,34,37],[28,0,28,37],[17,0,17,37],[18,0,18,37],[19,0,19,37],[20,0,20,37],[21,0,21,37],[22,0,22,37],[23,0,23,37],[24,0,24,37],[25,0,25,37],[26,0,26,37],[27,0,27,37],[16,0,16,37],[5,0,5,37],[6,0,6,37],[7,0,7,37],[8,0,8,37],[9,0,9,37],[10,0,10,37],[11,0,11,37],[12,0,12,37],[13,0,13,37],[14,0,14,37],[15,0,15,37],[4,0,4,37],[0,0,0,34],[0,35,0,37],[1,0,1,37],[2,0,2,37],[3,0,3,37]]}
["Instructions",null,null,null,null,null,null,null,null,null,null,null,null,null,null,null,null,null,null,null,null,null,null,null,null,null,null,null,null,null,null,null,null,null,null,{"$f":"#REF!","v":{"$error":"#REF!"}}]
["HCD will only accept applications through a postal carrier service such as U.S. Postal Service, UPS, FedEx or other carrier services that provide date stamp verification confirming delivery to HCD’s office. A complete original application and an electronic copy on a USB flash drive with all applicable information must be received by HCD via postal carrier no later than 5:00 p.m. on:"]
["2020-07-27"]
["Applications must be on the Department’s forms and cannot be altered or modified by the Sponsor. Excel forms must be in Excel format and unprotected, not a .pdf document.  Please fill-out the Application Support worksheet and email the entire workbook to Application Support for application errors at AppSupport@hcd.ca.gov."]
["General Instructions (Addition instructions and guidance are given throughout the Supplemental Application in \"red\" text and in cell comments. "]
["\"Yellow\" cells are for Sponsor input. Failure to provide the required attachments and documentation may disqualify your application from consideration or may negatively impact your point score."]
["Required attachments are indicated in \"Orange\" throughout the Supplemental Application. Failure to provide the required attachments and documentation may disqualify your application from consideration or may negatively impact your point score. Electronically attached files must use the naming convention in the Supplemental Application. For Example: \"App1 Payee Data\" for Sponsor 1 Payee Data Record/ STD. 204."]
["Self score points awarded are indicated in \"blue\" cells in the 'Selection Criteria' worksheet. These are automated calculations based on the inputs provided by the Sponsor. "]
["\"Red\" shaded cells indicate the Sponsor has failed to meet a requirement of the program. Point cells in \"Scoring\" worksheet shaded in \"Red\" indicate that the Sponsor has failed to meet the minimum points required. "]
["Universal Application (UA) Instructions"]
["Sponsors must complete the following worksheets in the UA. "]
["General"]
["Narrative"]
["Site & Units"]
["Misc. "]
["Rents"]
["Subsidies"]
["Dev Budget"]
["TBL and High Cost Test"]
["Developer Fee 2017"]
["Supportive Services Costs (Supportive Housing and Special Needs Projects Only)"]
["Reserves"]
["Operating"]
["Cash Flow"]
["Supplemental Application Instructions"]
["Sponsor must complete the following worksheets in the Supplemental Application. "]
["B - Project Requirements"]
["B1 - Development Team Contacts"]
["B2 - SH Experience 7302(f)(1-3) (Supportive Housing Projects Only)"]
["B3 - Supportive Services Plan (Supportive Housing and Special Needs Projects Only)"]
["B4 - SS Verification (Supportive Housing and Special Needs Projects Only)"]
["B5 - At High Risk (At High Risk Projects Only)"]
["C - Local & Env Verification "]
["D - Max Loan & Unit Mix"]
["E - Project Selection"]
["F - Certification & Legal"]
["Disclosure of Application: Information provided in this application and attachments will become a public record available for review by the public pursuant to the Public Records Act.  As such, any materials provided will be disclosable to any person making a public records request.  Please use discretion in providing HCD with information that is not specifically requested, including but not limited to, bank account numbers, personal phone numbers and home addresses.  By providing this information to HCD, the Sponsor is waiving any claim of confidentiality and consents to the disclosure of all submitted material upon request."]

{"sheet":"Overview","index":2,"n_rows":37,"n_cols":39,"rows_kept":37,"cut":false,"hidden":false,"merged":[[14,0,14,3],[14,4,14,11],[14,13,14,18],[14,19,14,20],[14,21,14,29],[14,30,14,31],[14,32,14,37],[8,31,8,35],[8,36,8,37],[13,0,13,1],[13,2,13,16],[13,18,13,24],[13,25,13,26],[13,27,13,30],[13,31,13,32],[13,35,13,37],[0,0,0,34],[0,35,0,37],[1,0,1,37],[2,0,2,37],[3,0,3,37],[9,7,9,20],[9,24,9,27],[9,0,9,3],[9,31,9,34],[4,0,4,37],[5,0,5,37],[6,0,6,2],[6,3,6,10],[6,11,6,30],[6,31,6,35],[6,36,6,37],[7,0,7,2],[7,3,7,10],[7,11,7,30],[7,31,7,35],[7,36,7,37],[8,0,8,2],[8,3,8,10],[8,11,8,30],[30,31,30,35],[28,36,28,37],[26,36,26,37],[27,36,27,37],[27,0,27,2],[27,3,27,10],[27,11,27,30],[27,31,27,35],[24,36,24,37],[24,0,24,2],[25,0,25,2],[30,0,30,2],[30,11,30,30],[25,3,25,10],[25,11,25,30],[25,31,25,35],[25,36,25,37],[26,0,26,2],[26,3,26,10],[26,11,26,30],[30,3,30,10],[24,31,24,35],[33,36,33,37],[29,31,29,35],[15,13,15,18],[15,19,15,20],[19,11,19,30],[17,0,17,2],[17,3,17,10],[17,11,17,30],[17,31,17,35],[15,32,15,37],[19,0,19,2],[19,36,19,37],[17,36,17,37],[16,0,16,2],[16,3,16,10],[16,11,16,30],[16,31,16,35],[16,36,16,37],[15,0,15,3],[15,4,15,11],[19,31,19,35],[24,3,24,10],[24,11,24,30],[26,31,26,35],[18,31,18,35],[19,3,19,10],[23,0,23,3],[23,4,23,11],[23,13,23,18],[23,19,23,20],[23,21,23,29],[23,30,23,31],[23,32,23,37],[21,0,21,1],[21,2,21,16],[21,18,21,24],[21,25,21,26],[21,27,21,30],[21,31,21,32],[21,35,21,37],[22,0,22,3],[9,4,9,6],[9,21,9,23],[9,28,9,30],[9,35,9,37],[22,4,22,11],[22,13,22,18],[22,19,22,20],[22,21,22,29],[22,30,22,31],[22,32,22,37],[10,0,10,37],[11,0,11,37],[12,0,12,4],[12,5,12,37],[18,36,18,37],[15,21,15,29],[15,30,15,31],[20,0,20,4],[20,5,20,28],[20,34,20,37],[20,29,20,33],[18,0,18,2],[18,3,18,10],[18,11,18,30],[36,0,36,2],[36,3,36,10],[36,11,36,30],[36,31,36,35],[36,36,36,37],[28,0,28,2],[28,3,28,10],[28,11,28,30],[28,31,28,35],[34,0,34,37],[35,3,35,10],[35,11,35,30],[35,31,35,35],[35,36,35,37],[30,36,30,37],[31,0,31,37],[32,36,32,37],[29,3,29,10],[29,11,29,30],[35,0,35,2],[32,0,32,35],[29,36,29,37],[29,0,29,2],[33,0,33,35]]}
["Overview",null,null,null,null,null,null,null,null,null,null,null,null,null,null,null,null,null,null,null,null,null,null,null,null,null,null,null,null,null,null,null,null,null,null,{"$f":"'PLHA Coverpage'!A46","v":"Rev. 9/14/20"}]
["Proposed Activity §401; Funding Limits/Request NOFA"]
["(a) Select below the proposed Activity you are applying for. Note: eligible Activities must take place within the jurisdiction of the Applicant Local government."]
[null,null,null,null,null,null,null,null,null,null,null,null,null,null,null,null,null,null,null,null,null,null,null,null,null,null,null,null,null,null,null,null,null,null,null,null,null,null,"(1) Development of new or substantial rehabilitation of multifamily rental housing that is Affordable to households at or below 60% of AMI, but which is not currently restricted as Affordable housing (APPLICANT MUST COMPLETE AND SUBMIT THE HCD UNIVERSAL APPLICATION)"]
["Fully describe the proposed Activity above. If your proposed Activity is assistance to persons who are experiencing At-risk of homelessness (2d), describe all subactivities.",null,null,null,null,null,null,null,null,null,null,null,null,null,null,null,null,null,null,null,null,null,null,null,null,null,null,null,null,null,null,null,null,null,null,null,null,null,"(2a) Development of a navigation center"]
[null,null,null,null,null,null,null,null,null,null,null,null,null,null,null,null,null,null,null,null,null,null,null,null,null,null,null,null,null,null,null,null,null,null,null,null,null,null,"(2b) New construction, rehabilitation, or preservation of permanent or transitional rental housing (APPLICANT MUST COMPLETE AND SUBMIT THE HCD UNIVERSAL APPLICATION)"]
["File Name:",null,null,"Activity Schedule",null,null,null,null,null,null,null,"Submit a timeline and schedule for the proposed activity",null,null,null,null,null,null,null,null,null,null,null,null,null,null,null,null,null,null,null,"Saved on USB?",null,null,null,null,null,null,"(2c) Operating costs for navigation centers"]
["File Name:",null,null,"Activity Plan",null,null,null,null,null,null,null,"Submit a detailed plan discussing the proposed activity",null,null,null,null,null,null,null,null,null,null,null,null,null,null,null,null,null,null,null,"Saved on USB?",null,null,null,null,null,null,"(2d) Rapid rehousing"]
["File Name:",null,null,"Activity Guidelines",null,null,null,null,null,null,null,"Submit guidelines for determining amount of funds to be provided",null,null,null,null,null,null,null,null,null,null,null,null,null,null,null,null,null,null,null,"Saved on USB?",null,null,null,null,null,null,"(2d) Rapid rehousing"]
["Funding limit",null,null,null,{"$f":"IF(A4=\"\",\"\",IF(OR(A4=AM4,A4=AM5,A4=AM6),3000000,1000000))","v":""},null,null,"Funds requested including admin expenses (min. $500,000)",null,null,null,null,null,null,null,null,null,null,null,null,null,null,null,null,"Admin limit 5%",null,null,null,{"$f":"IF(A4=\"\",\"\",(MIN(E10,V10)*0.05))","v":""},null,null,"Admin requested",null,null,null,null,null,null,"(2e) Rental assistance"]
["Applicant §400",null,null,null,null,null,null,null,null,null,null,null,null,null,null,null,null,null,null,null,null,null,null,null,null,null,null,null,null,null,null,null,null,null,null,null,null,null,"(2f) Supportive and case management services"]
["(a) Eligible Applicants for this non-entitlement competitive allocation described in Section 100(b)(3) are limited to non-entitlement local governments. For development of Rental Housing Projects, the Sponsor must be a co-Applicant.",null,null,null,null,null,null,null,null,null,null,null,null,null,null,null,null,null,null,null,null,null,null,null,null,null,null,null,null,null,null,null,null,null,null,null,null,null,"(2g) Street outreach"]
["Applicant Name:  "]
["Address",null,null,null,null,null,null,null,null,null,null,null,null,null,null,null,null,"City",null,null,null,null,null,null,null,"County",null,null,null,null,null,"State",null,null,"Zip"]
["Auth Rep: Name",null,null,null,null,null,null,null,null,null,null,null,"Title",null,null,null,null,null,null,"Email",null,null,null,null,null,null,null,null,null,null,"Phone"]
["Contact: Name",null,null,null,null,null,null,null,null,null,null,null,"Title",null,null,null,null,null,null,"Email",null,null,null,null,null,null,null,null,null,null,"Phone"]
["File Name:",null,null,"App Cert & Legal",null,null,null,null,null,null,null,"Reference 'Certifications & Legal Status' Worksheet. Only complete Certification part.",null,null,null,null,null,null,null,null,null,null,null,null,null,null,null,null,null,null,null,"Saved on USB?"]
["File Name:",null,null,"App Signature Block",null,null,null,null,null,null,null,"Signature Block - upload in Microsoft Word Document.",null,null,null,null,null,null,null,null,null,null,null,null,null,null,null,null,null,null,null,"Saved on USB?"]
["File Name",null,null,"App Payee Data Record",null,null,null,null,null,null,null,"Payee Data Record STD-204 on the PLHA webpage.",null,null,null,null,null,null,null,null,null,null,null,null,null,null,null,null,null,null,null,"Saved on USB?"]
["File Name",null,null,"App TIN Form",null,null,null,null,null,null,null,"Taxpayer Identification Number (TIN) (public entities only) on the PLHA webpage.",null,null,null,null,null,null,null,null,null,null,null,null,null,null,null,null,null,null,null,"Saved on USB?"]
["Co-Applicant Name:",null,null,null,null,null,null,null,null,null,null,null,null,null,null,null,null,null,null,null,null,null,null,null,null,null,null,null,null,"Organization Type:"]
["Address",null,null,null,null,null,null,null,null,null,null,null,null,null,null,null,null,"City",null,null,null,null,null,null,null,"County",null,null,null,null,null,"State",null,null,"Zip"]
["Auth Rep: Name",null,null,null,null,null,null,null,null,null,null,null,"Title",null,null,null,null,null,null,"Email",null,null,null,null,null,null,null,null,null,null,"Phone"]
["Contact: Name",null,null,null,null,null,null,null,null,null,null,null,"Title",null,null,null,null,null,null,"Email",null,null,null,null,null,null,null,null,null,null,"Phone"]
["File Name:",null,null,"Co-App Cert & Legal",null,null,null,null,null,null,null,"Reference 'Certifications & Legal Status' Worksheet.",null,null,null,null,null,null,null,null,null,null,null,null,null,null,null,null,null,null,null,"Saved on USB?"]
["File Name:",null,null,"OrgDoc1, OrgDoc2, etc…",null,null,null,null,null,null,null,"Reference Sponsor Org Docs worksheet",null,null,null,null,null,null,null,null,null,null,null,null,null,null,null,null,null,null,null,"Saved on USB?"]
["File Name:",null,null,"OrgChart",null,null,null,null,null,null,null,"Sponsor Organization Chart",null,null,null,null,null,null,null,null,null,null,null,null,null,null,null,null,null,null,null,"Saved on USB?"]
["File Name:",null,null,"Co-App Signature Block",null,null,null,null,null,null,null,"Signature Block - upload in Microsoft Word Document.",null,null,null,null,null,null,null,null,null,null,null,null,null,null,null,null,null,null,null,"Saved on USB?"]
["File Name",null,null,"Co-App Payee Data Record",null,null,null,null,null,null,null,"Payee Data Record STD-204 on the PLHA webpage.",null,null,null,null,null,null,null,null,null,null,null,null,null,null,null,null,null,null,null,"Saved on USB?"]
["File Name:",null,null,"Cert of Good Standing",null,null,null,null,null,null,null,"Must be dated 30 days or less from the application due date.",null,null,null,null,null,null,null,null,null,null,null,null,null,null,null,null,null,null,null,"Saved on USB?"]
["File Name:",null,null,"Tax-Exempt Status",null,null,null,null,null,null,null,"Evidence of tax-exempt status from IRS and from FTB for Corporations.",null,null,null,null,null,null,null,null,null,null,null,null,null,null,null,null,null,null,null,"Saved on USB?"]
["Threshold Requirements §402"]
["(a) Does the Applicant have a Housing Element that has been adopted by the jurisdiction’s governing body by the application due date and subsequently determined to be in substantial compliance with state Housing Element Law pursuant to GC §65585. Current Housing Element compliance status can be obtained by referencing the Department’s website at http://www.hcd.ca.gov/community-development/housing-element."]
["(b) Has the Applicant submitted to HCD the Annual Progress Report (APR) required by GC §65400 for the current or prior year by the application due date?"]
["(c)(2) and (3) Submission of an application by the Applicant and a co-Applicant must be authorized by resolutions of the governing boards of both the Applicant and co-Applicant. Applicants may use their own resolution format as long as it contains ALL of the authorizations as in the sample.\nThe person attesting to the resolution signing cannot be the same person authorized to execute the documents in the name of the Applicant.\nIf more than one authorized signatory is identified, state whether both signatories are required or only one signatory is required to submit and execute Program docs.\nIf the application is being signed by a designee of the authorized signatory, the Applicant must also submit a designee letter or other proof of signing authority."]
["File Name",null,null,"App Reso",null,null,null,null,null,null,null,"Copy of the local government Resolution - sample on the PLHA webpage",null,null,null,null,null,null,null,null,null,null,null,null,null,null,null,null,null,null,null,"Saved on USB?"]
["File Name",null,null,"Co-App Reso",null,null,null,null,null,null,null,"Copy of the local government Resolution - sample on the PLHA webpage",null,null,null,null,null,null,null,null,null,null,null,null,null,null,null,null,null,null,null,"Saved on USB?"]

{"sheet":"Legislative Contacts ","index":3,"n_rows":34,"n_cols":36,"rows_kept":34,"cut":false,"hidden":false,"merged":[[25,25,25,37],[24,0,24,37],[32,25,32,37],[26,0,26,7],[26,8,26,15],[26,16,26,24],[26,25,26,37],[27,0,27,7],[27,8,27,15],[27,16,27,24],[32,0,32,7],[32,8,32,15],[32,16,32,24],[25,0,25,7],[25,8,25,15],[25,16,25,24],[14,0,14,37],[17,25,17,37],[18,0,18,7],[18,8,18,15],[18,16,18,24],[18,25,18,37],[33,0,33,7],[33,8,33,15],[33,16,33,24],[33,25,33,37],[27,25,27,37],[28,0,28,7],[28,8,28,15],[28,16,28,24],[28,25,28,37],[30,0,30,7],[30,8,30,15],[30,16,30,24],[30,25,30,37],[29,0,29,37],[31,0,31,7],[31,8,31,15],[31,16,31,24],[31,25,31,37],[22,0,22,7],[22,8,22,15],[22,16,22,24],[20,0,20,7],[20,8,20,15],[20,16,20,24],[20,25,20,37],[22,25,22,37],[15,0,15,7],[15,8,15,15],[15,16,15,24],[15,25,15,37],[12,0,12,7],[12,8,12,15],[12,16,12,24],[10,0,10,7],[10,8,10,15],[10,16,10,24],[10,25,10,37],[12,25,12,37],[23,0,23,7],[23,8,23,15],[23,16,23,24],[23,25,23,37],[16,0,16,7],[16,8,16,15],[16,16,16,24],[16,25,16,37],[17,0,17,7],[17,8,17,15],[17,16,17,24],[19,0,19,37],[21,0,21,7],[21,8,21,15],[21,16,21,24],[21,25,21,37],[9,0,9,37],[11,0,11,7],[11,8,11,15],[11,16,11,24],[11,25,11,37],[5,25,5,37],[6,25,6,37],[7,25,7,37],[8,25,8,37],[13,0,13,7],[13,8,13,15],[13,16,13,24],[13,25,13,37],[0,35,0,37],[0,0,0,34],[8,8,8,15],[8,16,8,24],[5,8,5,15],[5,16,5,24],[6,8,6,15],[6,16,6,24],[1,0,1,37],[2,0,2,37],[4,0,4,37],[7,8,7,15],[7,16,7,24],[3,0,3,11],[3,12,3,24],[3,25,3,37],[5,0,5,7],[6,0,6,7],[7,0,7,7],[8,0,8,7]]}
["Legislative and Congressional Information",null,null,null,null,null,null,null,null,null,null,null,null,null,null,null,null,null,null,null,null,null,null,null,null,null,null,null,null,null,null,null,null,null,null,{"$f":"'PLHA Coverpage'!A46","v":"Rev. 9/14/20"}]
["Provide the Legislative and Congressional information for the applicant and each activity location, (if different than applicant location). "]
["To locate or verify the Legislative and Congressional information, click on the respective links below and enter the applicant office location zip code, the activity location site zip code(s) (i.e. zip code(s) where activities are performed), and any additional activity location site(s), as applicable."]
["California State Assembly",null,null,null,null,null,null,null,null,null,null,null,"California State Senate",null,null,null,null,null,null,null,null,null,null,null,null,"U.S. House of Representatives"]
["Applicant Office Location"]
[null,null,null,null,null,null,null,null,"District #",null,null,null,null,null,null,null,"First Name",null,null,null,null,null,null,null,null,"Last Name"]
["State Assembly Member"]
["State Senate Member"]
["US House of Representatives"]
["Activity Location 1 (if different from applicant location)"]
[null,null,null,null,null,null,null,null,"District #",null,null,null,null,null,null,null,"First Name",null,null,null,null,null,null,null,null,"Last Name"]
["State Assembly Member"]
["State Senate Member"]
["US House of Representatives"]
["Activity Location 2 (if different from applicant location)"]
[null,null,null,null,null,null,null,null,"District #",null,null,null,null,null,null,null,"First Name",null,null,null,null,null,null,null,null,"Last Name"]
["State Assembly Member"]
["State Senate Member"]
["US House of Representatives"]
["Activity Location 3 (if different from applicant location)"]
[null,null,null,null,null,null,null,null,"District #",null,null,null,null,null,null,null,"First Name",null,null,null,null,null,null,null,null,"Last Name"]
["State Assembly Member"]
["State Senate Member"]
["US House of Representatives"]
["Activity Location 4 (if different from applicant location)"]
[null,null,null,null,null,null,null,null,"District #",null,null,null,null,null,null,null,"First Name",null,null,null,null,null,null,null,null,"Last Name"]
["State Assembly Member"]
["State Senate Member"]
["US House of Representatives"]
["Activity Location 5 (if different from applicant location)"]
[null,null,null,null,null,null,null,null,"District #",null,null,null,null,null,null,null,"First Name",null,null,null,null,null,null,null,null,"Last Name"]
["State Assembly Member"]
["State Senate Member"]
["US House of Representatives"]

{"sheet":"Annual Operating Budget","index":4,"n_rows":59,"n_cols":30,"rows_kept":59,"cut":false,"hidden":false,"merged":[[53,0,53,13],[53,14,53,17],[53,18,53,31],[44,0,44,13],[44,14,44,17],[44,18,44,31],[45,0,45,13],[45,14,45,17],[45,18,45,31],[47,0,47,13],[47,14,47,17],[47,18,47,31],[52,0,52,31],[49,0,49,13],[49,14,49,17],[49,18,49,31],[50,0,50,13],[50,14,50,17],[50,18,50,31],[48,0,48,13],[48,14,48,17],[48,18,48,31],[51,0,51,13],[51,14,51,17],[0,0,1,28],[0,29,1,31],[4,0,4,13],[4,14,4,17],[4,18,4,31],[5,18,5,31],[5,0,5,13],[5,14,5,17],[3,0,3,31],[2,0,2,13],[2,14,2,17],[2,18,2,31],[6,18,6,31],[6,0,6,13],[6,14,6,17],[8,0,8,13],[8,14,8,17],[8,18,8,31],[13,14,13,17],[13,18,13,31],[12,14,12,17],[12,18,12,31],[9,0,9,13],[9,14,9,17],[9,18,9,31],[7,0,7,13],[7,14,7,17],[7,18,7,31],[10,0,10,13],[10,14,10,17],[10,18,10,31],[16,0,16,13],[17,14,17,17],[16,18,16,31],[17,0,17,13],[16,14,16,17],[17,18,17,31],[11,0,11,31],[22,0,22,13],[23,0,23,13],[18,0,18,31],[14,0,14,13],[14,14,14,17],[14,18,14,31],[15,0,15,13],[15,14,15,17],[15,18,15,31],[12,0,12,13],[13,0,13,13],[19,0,19,13],[19,14,19,17],[19,18,19,31],[20,0,20,13],[20,14,20,17],[20,18,20,31],[23,14,23,17],[23,18,23,31],[26,0,26,13],[26,14,26,17],[26,18,26,31],[21,0,21,13],[21,14,21,17],[21,18,21,31],[22,14,22,17],[22,18,22,31],[27,0,27,13],[27,14,27,17],[27,18,27,31],[24,14,24,17],[24,18,24,31],[25,0,25,31],[28,0,28,13],[28,14,28,17],[28,18,28,31],[24,0,24,13],[32,0,32,31],[36,0,36,13],[36,14,36,17],[36,18,36,31],[35,0,35,13],[35,14,35,17],[35,18,35,31],[34,0,34,13],[34,14,34,17],[34,18,34,31],[29,0,29,13],[29,14,29,17],[29,18,29,31],[30,0,30,13],[30,14,30,17],[30,18,30,31],[31,0,31,13],[31,14,31,17],[31,18,31,31],[37,18,37,31],[39,0,39,13],[39,14,39,17],[39,18,39,31],[33,0,33,13],[33,14,33,17],[33,18,33,31],[41,14,41,17],[37,0,37,13],[37,14,37,17],[55,0,55,13],[55,14,55,17],[55,18,55,31],[54,0,54,13],[54,14,54,17],[54,18,54,31],[38,0,38,13],[38,14,38,17],[38,18,38,31],[43,0,43,13],[43,14,43,17],[43,18,43,31],[40,0,40,13],[40,14,40,17],[40,18,40,31],[41,0,41,13],[51,18,51,31],[46,0,46,13],[46,14,46,17],[46,18,46,31],[41,18,41,31],[42,0,42,13],[42,14,42,17],[42,18,42,31],[58,0,58,13],[56,14,56,17],[56,18,56,31],[58,14,58,17],[58,18,58,31],[56,0,56,13],[57,0,57,13],[57,14,57,17],[57,18,57,31]]}
["Annual Operating Budget - Rapid Rehousing, Rental Assistance, Street Outreach Supportive Services and Navigation Centers",null,null,null,null,null,null,null,null,null,null,null,null,null,null,null,null,null,null,null,null,null,null,null,null,null,null,null,null,{"$f":"'PLHA Coverpage'!A46","v":"Rev. 9/14/20"}]
[]
["Revenue",null,null,null,null,null,null,null,null,null,null,null,null,null,"Amount",null,null,null,"Comments"]
["Grants"]
["Grant (specify)",null,null,null,null,null,null,null,null,null,null,null,null,null,0]
["Grant (specify)",null,null,null,null,null,null,null,null,null,null,null,null,null,0]
["Grant (specify)",null,null,null,null,null,null,null,null,null,null,null,null,null,0]
["Grant (specify)",null,null,null,null,null,null,null,null,null,null,null,null,null,0]
["Grant (specify)",null,null,null,null,null,null,null,null,null,null,null,null,null,0]
["Grant (specify)",null,null,null,null,null,null,null,null,null,null,null,null,null,0]
[" Total Grants",null,null,null,null,null,null,null,null,null,null,null,null,null,{"$f":"SUM(O5:R10)","v":0}]
["Other Revenue"]
["Other (specify)",null,null,null,null,null,null,null,null,null,null,null,null,null,0]
["Other (specify)",null,null,null,null,null,null,null,null,null,null,null,null,null,0]
["Other (specify)",null,null,null,null,null,null,null,null,null,null,null,null,null,0]
[" Total Other Revenue",null,null,null,null,null,null,null,null,null,null,null,null,null,{"$f":"SUM(O13:R15)","v":0}]
["Total Revenue",null,null,null,null,null,null,null,null,null,null,null,null,null,{"$f":"O12+O16","v":0}]
["Operating Expenses",null,null,null,null,null,null,null,null,null,null,null,null,null,"Amount",null,null,null,"Comments"]
["Personnel"]
["Salary & Wages",null,null,null,null,null,null,null,null,null,null,null,null,null,0]
["Employee Benefits including insurance",null,null,null,null,null,null,null,null,null,null,null,null,null,0]
["Payroll Taxes",null,null,null,null,null,null,null,null,null,null,null,null,null,0]
["Other (specify)",null,null,null,null,null,null,null,null,null,null,null,null,null,0]
["Other (specify)",null,null,null,null,null,null,null,null,null,null,null,null,null,0]
[" Total Personnel Expenses",null,null,null,null,null,null,null,null,null,null,null,null,null,{"$f":"SUM(O20:R24)","v":0}]
["Supplies "]
["Supplies (Office)",null,null,null,null,null,null,null,null,null,null,null,null,null,0]
["Supplies (Program)",null,null,null,null,null,null,null,null,null,null,null,null,null,0]
["Books",null,null,null,null,null,null,null,null,null,null,null,null,null,0]
["Other (specify)",null,null,null,null,null,null,null,null,null,null,null,null,null,0]
["Other (specify)",null,null,null,null,null,null,null,null,null,null,null,null,null,0]
[" Total Supplies Expenses",null,null,null,null,null,null,null,null,null,null,null,null,null,{"$f":"SUM(O27:R31)","v":0}]
["Services and Other"]
["Office Equipment Repair and Maintenance",null,null,null,null,null,null,null,null,null,null,null,null,null,0]
["Office Rent / Mortgage Payment",null,null,null,null,null,null,null,null,null,null,null,null,null,0]
["Property and Liability Insurance",null,null,null,null,null,null,null,null,null,null,null,null,null,0]
["Legal Expense",null,null,null,null,null,null,null,null,null,null,null,null,null,0]
["Professional Fees (Consultants)",null,null,null,null,null,null,null,null,null,null,null,null,null,0]
["Bookkeeping Fees/Accounting Services",null,null,null,null,null,null,null,null,null,null,null,null,null,0]
["Travel (Staff/Local)",null,null,null,null,null,null,null,null,null,null,null,null,null,0]
["Telephone",null,null,null,null,null,null,null,null,null,null,null,null,null,0]
["Internet",null,null,null,null,null,null,null,null,null,null,null,null,null,0]
["Postage",null,null,null,null,null,null,null,null,null,null,null,null,null,0]
["Utilities",null,null,null,null,null,null,null,null,null,null,null,null,null,0]
["Real Estate Taxes",null,null,null,null,null,null,null,null,null,null,null,null,null,0]
["Other Taxes and Permits",null,null,null,null,null,null,null,null,null,null,null,null,null,0]
["Security",null,null,null,null,null,null,null,null,null,null,null,null,null,0]
["Building Repairs and Maintenance",null,null,null,null,null,null,null,null,null,null,null,null,null,0]
["Other (specify)",null,null,null,null,null,null,null,null,null,null,null,null,null,0]
["Other (specify)",null,null,null,null,null,null,null,null,null,null,null,null,null,0]
["Other (specify)",null,null,null,null,null,null,null,null,null,null,null,null,null,0]
[" Total Services and Other Expenses",null,null,null,null,null,null,null,null,null,null,null,null,null,{"$f":"SUM(O34:R51)","v":0}]
["Navigation Centers only (rows 54-56)"]
["Food",null,null,null,null,null,null,null,null,null,null,null,null,null,0]
["Required Reserves (explain in comments)",null,null,null,null,null,null,null,null,null,null,null,null,null,0]
["Debt Service (explain in comments)",null,null,null,null,null,null,null,null,null,null,null,null,null,0]
["Total Navigation Center Expenses",null,null,null,null,null,null,null,null,null,null,null,null,null,{"$f":"SUM(O54:R56)","v":0}]
["Total Operating Expenses",null,null,null,null,null,null,null,null,null,null,null,null,null,{"$f":"O25+O32+O52+O57","v":0}]
["Excess/(Deficit)",null,null,null,null,null,null,null,null,null,null,null,null,null,{"$f":"O17-O58","v":0}]

{"sheet":"Development Info","index":5,"n_rows":68,"n_cols":36,"rows_kept":68,"cut":false,"hidden":false,"merged":[[43,0,43,2],[43,3,43,10],[43,11,43,30],[43,31,43,35],[43,36,43,37],[14,0,14,2],[14,3,14,10],[14,11,14,30],[14,31,14,35],[14,36,14,37],[41,0,41,35],[41,36,41,37],[42,0,42,2],[42,3,42,10],[42,11,42,30],[42,31,42,35],[42,36,42,37],[39,0,39,2],[39,3,39,10],[39,11,39,30],[39,31,39,35],[39,36,39,37],[40,0,40,2],[40,11,40,30],[63,0,63,37],[64,0,64,4],[64,5,64,6],[64,7,64,9],[64,11,64,21],[64,22,64,24],[64,25,64,30],[64,31,64,32],[64,33,64,35],[64,36,64,37],[67,31,67,35],[67,36,67,37],[67,0,67,2],[67,3,67,10],[67,11,67,30],[65,25,65,30],[65,31,65,32],[65,33,65,35],[65,36,65,37],[65,7,65,9],[65,11,65,21],[65,22,65,24],[66,23,66,34],[66,9,66,12],[66,35,66,37],[66,0,66,8],[66,13,66,16],[66,17,66,20],[66,21,66,22],[59,0,59,35],[59,36,59,37],[60,0,60,2],[60,3,60,10],[60,11,60,30],[60,31,60,35],[60,36,60,37],[61,0,61,37],[62,0,62,35],[62,36,62,37],[47,36,47,37],[57,0,57,35],[57,36,57,37],[58,0,58,37],[48,0,48,37],[49,0,49,35],[49,36,49,37],[55,0,55,2],[55,3,55,10],[55,11,55,30],[55,31,55,35],[55,36,55,37],[56,0,56,37],[52,0,52,37],[53,0,53,35],[53,36,53,37],[54,0,54,2],[54,3,54,10],[54,11,54,30],[54,31,54,35],[54,36,54,37],[50,0,50,35],[50,36,50,37],[51,0,51,37],[44,0,44,37],[45,0,45,35],[45,36,45,37],[46,0,46,37],[47,0,47,35],[35,0,35,37],[36,0,36,2],[36,3,36,10],[36,11,36,30],[36,31,36,35],[36,36,36,37],[40,31,40,35],[40,36,40,37],[37,0,37,2],[37,3,37,10],[37,11,37,30],[37,31,37,35],[37,36,37,37],[38,0,38,2],[38,3,38,10],[38,11,38,30],[38,31,38,35],[38,36,38,37],[40,3,40,10],[33,0,33,11],[33,12,33,15],[33,16,33,24],[33,25,33,37],[34,0,34,35],[34,36,34,37],[31,0,31,11],[31,12,31,15],[31,16,31,24],[31,25,31,37],[32,0,32,11],[32,12,32,15],[32,16,32,24],[32,25,32,37],[24,11,24,30],[24,31,24,35],[24,36,24,37],[29,0,29,11],[29,12,29,15],[29,16,29,24],[29,25,29,37],[30,0,30,11],[30,12,30,15],[30,16,30,24],[30,25,30,37],[28,0,28,11],[28,12,28,15],[28,16,28,24],[28,25,28,37],[27,0,27,11],[27,12,27,15],[27,16,27,24],[27,25,27,37],[25,0,25,2],[25,3,25,10],[25,11,25,30],[25,31,25,35],[25,36,25,37],[22,0,22,2],[22,3,22,10],[22,11,22,30],[22,31,22,35],[22,36,22,37],[23,0,23,2],[23,3,23,10],[23,11,23,30],[23,31,23,35],[23,36,23,37],[26,0,26,37],[24,0,24,2],[24,3,24,10],[19,0,19,6],[19,7,19,10],[19,15,19,18],[19,36,19,37],[17,36,17,37],[18,0,18,14],[18,15,18,16],[18,17,18,24],[18,25,18,26],[18,27,18,35],[18,36,18,37],[17,0,17,7],[17,8,17,14],[17,15,17,16],[17,17,17,24],[17,25,17,26],[17,27,17,35],[19,19,19,35],[19,11,19,14],[20,0,20,37],[21,0,21,37],[4,13,4,15],[4,16,4,19],[4,20,4,21],[4,22,4,25],[4,26,4,27],[15,0,15,35],[15,36,15,37],[16,0,16,10],[16,11,16,24],[16,25,16,33],[16,34,16,37],[10,0,10,37],[11,0,11,37],[13,36,13,37],[13,0,13,35],[4,0,4,2],[4,3,4,6],[4,7,4,8],[4,9,4,12],[9,36,9,37],[9,0,9,2],[9,3,9,10],[9,11,9,30],[9,31,9,35],[2,12,2,13],[2,14,2,35],[1,0,1,4],[1,31,1,37],[3,0,3,2],[3,3,3,22],[3,23,3,24],[3,25,3,31],[3,32,3,33],[3,34,3,37],[1,5,1,23],[1,24,1,30],[5,0,5,37],[12,0,12,2],[12,3,12,10],[12,11,12,30],[12,31,12,35],[12,36,12,37],[0,0,0,34],[0,35,0,37],[6,30,6,34],[6,35,6,37],[6,27,6,29],[6,10,6,26],[6,0,6,9],[4,28,4,31],[4,32,4,33],[4,34,4,37],[7,0,7,37],[8,0,8,2],[8,3,8,10],[8,11,8,30],[8,31,8,35],[8,36,8,37],[2,36,2,37],[2,0,2,11]]}
["Multifamily Rental Housing (MF) or Navigation Center (NC)",null,null,null,null,null,null,null,null,null,null,null,null,null,null,null,null,null,null,null,null,null,null,null,null,null,null,null,null,null,null,null,null,null,null,{"$f":"'PLHA Coverpage'!A46","v":"Rev. 9/14/20"}]
["Development Name",null,null,null,null,null,null,null,null,null,null,null,null,null,null,null,null,null,null,null,null,null,null,null,"Development Type"]
[{"$f":"IF(Overview!A4=Overview!AM5,\"Number of persons who will have overnight shelter\",\"Number of units in the Development:\")","v":"Number of units in the Development:"},null,null,null,null,null,null,null,null,null,null,null,null,null,"MF only: Number of rental units in the Development that will be restricted to 60% of AMI or less:"]
["Address",null,null,null,null,null,null,null,null,null,null,null,null,null,null,null,null,null,null,null,null,null,null,"City",null,null,null,null,null,null,null,null,"Zip"]
["Census Tract #1",null,null,null,null,null,null,"APN #1",null,null,null,null,null,"Census Tract #2",null,null,null,null,null,null,"APN #2",null,null,null,null,null,"Census Tract 3",null,null,null,null,null,"APN #3"]
["Rehabilitation Projects only (rows 7-10)"]
["MF Substantial Rehabilitation projects only:",null,null,null,null,null,null,null,null,null,"Total rehabilitation costs (Universal Application - Dev Budget tab - cell C28):",null,null,null,null,null,null,null,null,null,null,null,null,null,null,null,null,null,null,null,"Rehab cost per unit:",null,null,null,null,{"$f":"IFERROR(AB7/M3,0)","v":0}]
["Rehabilitation projects only: Provide a description of the current condition of the structure(s) and a general description of the overall scope of work. Include a discussion of any proposed modification to the unit configurations, unit mix, need for seismic retrofit, or modifications in use (e.g., commercial/tourist hotel to SRO or studio apartments). All projects must submit a Physical Needs Assessment (PNA) or Capital Needs Assessment (CNA) by a qualified independent third party contractor, which supports the proposed scope of work. Both the contractor and the PNA are subject to HCD approval. Include in the CNA upload, the current rent roll and tenant income and household size information, submit by unit."]
["File Name:",null,null,"Rehab Description",null,null,null,null,null,null,null,"Narrative of current condition of structure(s) and description of overall scope of work. Include a discussion of any proposed modification to unit configurations, unit mix, need for seismic retrofit, or modifications in use (e.g., commercial/tourist hotel to SRO).",null,null,null,null,null,null,null,null,null,null,null,null,null,null,null,null,null,null,null,"Saved on USB?"]
["File Name:",null,null,"CNA",null,null,null,null,null,null,null,"PNA or CNA by qualified independent third party contractor.",null,null,null,null,null,null,null,null,null,null,null,null,null,null,null,null,null,null,null,"Saved on USB?"]
["Explain any specific development issues (demolition, relocation, environmental, historical, topography, etc.) at the Development site."]
[]
["File Name:",null,null,"EFC1; EFC2; EFC3; etc.",null,null,null,null,null,null,null,"Provide Enforceable Funding Commitments for all development funding sources",null,null,null,null,null,null,null,null,null,null,null,null,null,null,null,null,null,null,null,"Saved on USB?"]
["MF only: Does market study demonstrate financial feasibility? - Must submit a market study that meets the requirements specified in TCAC Regs §10322(h)(10)"]
["File Name:",null,null,"Market Study",null,null,null,null,null,null,null,"MF only: Completed market study prepared within one year of the application due date.",null,null,null,null,null,null,null,null,null,null,null,null,null,null,null,null,null,null,null,"Saved on USB?"]
["(c)(4) Site Control: Does Applicant have Site Control of the Development?  If yes, enter form of site control and most recent execution date below."]
["Form of site control:",null,null,null,null,null,null,null,null,null,null,null,null,null,null,null,null,null,null,null,null,null,null,null,null,"Most recent document execution date:"]
["If leasehold estate, answer the following:",null,null,null,null,null,null,null,"Is rent based on restricted land value?",null,null,null,null,null,null,null,null,"Is acquisition cost $0 in Development Budget?",null,null,null,null,null,null,null,null,null,"Prepaid lease loan used? If Yes, answer (a-c) below"]
["(a) Funding amount based on the Present Value of lease payments?",null,null,null,null,null,null,null,null,null,null,null,null,null,null,null,null,"(b) Lender requesting Res. Receipts (not permissible)",null,null,null,null,null,null,null,null,null,"(c) Has loan amount been entered as a finance cost?"]
["Purchase price of the site(s):",null,null,null,null,null,null,null,null,null,null,"Appraised value:",null,null,null,null,null,null,null,"MF only: has Applicant completed any other units in this subdivision?"]
["Describe any special circumstances regarding site control:"]
[]
["File Name:",null,null,"Site Control",null,null,null,null,null,null,null,"Provide appropriate documentation to demonstrate the form of site control indicated above.",null,null,null,null,null,null,null,null,null,null,null,null,null,null,null,null,null,null,null,"Saved on USB?"]
["File Name:",null,null,"Prelim",null,null,null,null,null,null,null,"Provide the Preliminary Title Report to verify the accuracy of the site control document.",null,null,null,null,null,null,null,null,null,null,null,null,null,null,null,null,null,null,null,"Saved on USB?"]
["File Name:",null,null,"Appraisal",null,null,null,null,null,null,null,"If available, provide a current appraisal of the site(s).",null,null,null,null,null,null,null,null,null,null,null,null,null,null,null,null,null,null,null,"Saved on USB?"]
["File Name:",null,null,"Site Map",null,null,null,null,null,null,null,"Provide a site map of proposed site.",null,null,null,null,null,null,null,null,null,null,null,null,null,null,null,null,null,null,null,"Saved on USB?"]
["(c)(4) Status of all discretionary local land use approvals: Provide a listing and status of all discretionary local land use approvals, excluding design review, required to complete the Development that have been granted, submitted or to be applied for to the appropriate local agencies, or consistent with local planning documents. This information must match the information provided on the Verification of the Status of Environmental Review and Land Use Entitlements worksheet.\n\n"]
["Agency / Issuer",null,null,null,null,null,null,null,null,null,null,null,"Land Use Approval Date ",null,null,null,"Approval Type",null,null,null,null,null,null,null,null,"Type and Comments"]
[null,null,null,null,null,null,null,null,null,null,null,null,null,null,null,null,null,null,null,null,null,null,null,null,null,"Site Plan Review"]
[null,null,null,null,null,null,null,null,null,null,null,null,null,null,null,null,null,null,null,null,null,null,null,null,null,"Conditional Use Permits"]
[null,null,null,null,null,null,null,null,null,null,null,null,null,null,null,null,null,null,null,null,null,null,null,null,null,"Zoning Approval"]
[]
[]
[]
["(c)(4) Environmental: is the Development free from adverse environmental conditions that are economically infeasible to remove and cannot be mitigated? "]
["Attach all available Phase I and Phase II Environmental Site Assessments (ESA). Include any follow-up analysis, (e.g., asbestos or lead-based paint analysis), or information on mitigation completed. It is NOT necessary to include a copy of the Database Records Search section of the ESA."]
["File Name",null,null,"Env Report 1",null,null,null,null,null,null,null,null,null,null,null,null,null,null,null,null,null,null,null,null,null,null,null,null,null,null,null,"Saved on USB?"]
["File Name",null,null,"Env Report 2",null,null,null,null,null,null,null,null,null,null,null,null,null,null,null,null,null,null,null,null,null,null,null,null,null,null,null,"Saved on USB?"]
["File Name",null,null,"Env Report 3",null,null,null,null,null,null,null,null,null,null,null,null,null,null,null,null,null,null,null,null,null,null,null,null,null,null,null,"Saved on USB?"]
["File Name",null,null,"Env Report 4",null,null,null,null,null,null,null,null,null,null,null,null,null,null,null,null,null,null,null,null,null,null,null,null,null,null,null,"Saved on USB?"]
["File Name",null,null,"Env Report 5",null,null,null,null,null,null,null,null,null,null,null,null,null,null,null,null,null,null,null,null,null,null,null,null,null,null,null,"Saved on USB?"]
["Soils/engineering/geotechnical: has a site report been prepared?"]
["File Name:",null,null,"Soils-Engineering-Geo",null,null,null,null,null,null,null,"Attach the Soils, Engineering, or Geotechnical report.",null,null,null,null,null,null,null,null,null,null,null,null,null,null,null,null,null,null,null,"Saved on USB?"]
["File Name:",null,null,"Rehab Env Reports",null,null,null,null,null,null,null,"Attach the lead-based paint, mold, and asbestos reports related to rehab",null,null,null,null,null,null,null,null,null,null,null,null,null,null,null,null,null,null,null,"Saved on USB?"]
["Americans with Disabilities Act "]
["Sponsor certifies Development will comply with Americans with Disabilities Act and its implementing regulations."]
["Violence Against Women Act"]
["Sponsor certifies Development will comply with Violence Against Women Act."]
["Davis-Bacon Wage & State Prevailing Wage Requirements"]
["Sponsor certifies the Development will comply with Davis-Bacon wage requirements and State prevailing wage law, as set forth in Labor Code Section 1720 et seq., which requires the payment of prevailing wages unless the Development meets one of the exceptions of Labor Code 1720(c) as determined by the Department of Industrial Relations (DIR). Sponsors are urged to seek professional advice as to how to comply with State prevailing wage law."]
["If your Development requires demolition of existing residential units, are the number of bedrooms in the proposed Development at least equal to the total number of bedrooms in the demolished structures per UMR §8303(b)? Explain below how this requirement is satisfied including how many bedrooms in the units to be demolished and how many replacement units."]
[]
["Article XXXIV"]
["Article XXXIV legal opinion submitted to HCD demonstrates that the Sponsor has considered both the legal requirements of Article XXXIV and the relevant facts of the Development. Any conclusion that the Development is exempt from Article XXXIV is supported by specific facts and a specific legal theory for exemption that itself is supported by the Constitution, statute, and/or case law. Documentation provided shall be subject to HCD review and approval."]
["File Name:",null,null,"Article XXXIV Legal Opinion",null,null,null,null,null,null,null,"If the Sponsor includes an Article XXXIV legal opinion, provide a copy of legal opinion.",null,null,null,null,null,null,null,null,null,null,null,null,null,null,null,null,null,null,null,"Saved on USB?"]
["File Name:",null,null,"Article XXXIV Authority",null,null,null,null,null,null,null,"If the Locality has sufficient Article XXXIV authority, provide documentation per NOFA.",null,null,null,null,null,null,null,null,null,null,null,null,null,null,null,null,null,null,null,"Saved on USB?"]
["Tenant Selection UMR §8305"]
["Sponsor certifies the Development will comply with the requirements of UMR §8305 as applicable."]
["Fair Housing Act"]
["Does Development propose to restrict occupancy based on gender or age? If yes, include in legal opinion how Development satisfies fair housing laws (include supporting materials). Attach a specific legal opinion labeled \"Fair Housing\" with supporting materials describing how the Development complies with fair housing laws. For senior Developments, attach evidence that units are lawfully restricted to senior households in compliance with state and federal fair housing laws."]
["File Name:",null,null,"Fair Housing",null,null,null,null,null,null,null,"Legal opinion with supporting materials describing how Development complies. ",null,null,null,null,null,null,null,null,null,null,null,null,null,null,null,null,null,null,null,"Saved on USB?"]
["Pet Friendly Housing Act"]
["Sponsor certifies that residents of the housing development will be authorized to own or otherwise maintain one or more common household pets pursuant to the Pet Friendly Housing Act of 2017 (California Health & Safety Code, Section 50466)"]
["Tax Credits (TC)"]
["Type (Select One)",null,null,null,null,null,null,"Federal",null,null,null,"Proposed Equity Investor Contribution ($)",null,null,null,null,null,null,null,null,null,null,null,null,null,"Anticipated TC Factor",null,null,null,null,null,null,null,"App. Rate"]
[null,null,null,null,null,null,null,"State",null,null,null,"Proposed Equity Investor Contribution ($)",null,null,null,null,null,null,null,null,null,null,null,null,null,"Anticipated TC Factor",null,null,null,null,null,null,null,"App. Rate"]
["Timeframe for Applying for tax credits",null,null,null,null,null,null,null,null,"Proposed Month",null,null,null,null,null,null,null,"Proposed Year",null,null,null,null,null,"If already awarded, enter TCAC Reservation date:"]
["File Name:",null,null,"Tax Credit Reservation",null,null,null,null,null,null,null,"If Development has received a tax credit reservation, attach documentation.",null,null,null,null,null,null,null,null,null,null,null,null,null,null,null,null,null,null,null,"Saved on USB?"]

{"sheet":"Rental Development Team","index":6,"n_rows":79,"n_cols":36,"rows_kept":79,"cut":false,"hidden":false,"merged":[[0,0,0,34],[0,35,0,37],[44,0,44,2],[44,3,44,14],[44,15,44,18],[44,19,44,26],[44,27,44,29],[44,30,44,37],[4,0,4,3],[4,4,4,12],[6,0,6,1],[6,2,6,20],[6,22,6,27],[6,28,6,29],[6,30,6,32],[6,34,6,37],[5,34,5,37],[4,14,4,19],[4,32,4,33],[4,34,4,37],[5,0,5,3],[35,36,35,37],[36,36,36,37],[20,0,20,1],[45,31,45,32],[45,34,45,37],[47,0,47,2],[47,3,47,14],[47,15,47,18],[47,19,47,26],[47,27,47,29],[47,30,47,37],[45,0,45,1],[45,2,45,6],[45,7,45,8],[45,9,45,20],[45,22,45,28],[45,29,45,30],[48,31,48,32],[48,34,48,37],[50,0,50,2],[50,3,50,14],[50,15,50,18],[50,19,50,26],[50,27,50,29],[50,30,50,37],[48,0,48,1],[48,2,48,6],[48,7,48,8],[48,9,48,20],[48,22,48,28],[48,29,48,30],[51,31,51,32],[51,34,51,37],[53,0,53,2],[53,3,53,14],[53,15,53,18],[53,19,53,26],[53,27,53,29],[53,30,53,37],[51,0,51,1],[51,2,51,6],[51,7,51,8],[51,9,51,20],[51,22,51,28],[51,29,51,30],[54,31,54,32],[54,34,54,37],[56,0,56,2],[56,3,56,14],[56,15,56,18],[56,19,56,26],[56,27,56,29],[56,30,56,37],[54,0,54,1],[54,2,54,6],[54,7,54,8],[54,9,54,20],[54,22,54,28],[54,29,54,30],[57,31,57,32],[57,34,57,37],[59,0,59,2],[59,3,59,14],[59,15,59,18],[59,19,59,26],[59,27,59,29],[59,30,59,37],[57,0,57,1],[57,2,57,6],[57,7,57,8],[57,9,57,20],[57,22,57,28],[57,29,57,30],[60,31,60,32],[60,34,60,37],[62,0,62,2],[62,3,62,14],[62,15,62,18],[62,19,62,26],[62,27,62,29],[62,30,62,37],[60,0,60,1],[60,2,60,6],[60,7,60,8],[60,9,60,20],[60,22,60,28],[60,29,60,30],[63,31,63,32],[63,34,63,37],[65,0,65,2],[65,3,65,14],[65,15,65,18],[65,19,65,26],[65,27,65,29],[65,30,65,37],[63,0,63,1],[63,2,63,6],[63,7,63,8],[63,9,63,20],[63,22,63,28],[63,29,63,30],[66,31,66,32],[66,34,66,37],[68,0,68,2],[68,3,68,14],[68,15,68,18],[68,19,68,26],[68,27,68,29],[68,30,68,37],[66,0,66,1],[66,2,66,6],[66,7,66,8],[66,9,66,20],[66,22,66,28],[66,29,66,30],[69,31,69,32],[69,34,69,37],[69,0,69,1],[69,2,69,6],[69,7,69,8],[69,9,69,20],[69,22,69,28],[69,29,69,30],[72,9,72,20],[72,22,72,28],[72,29,72,30],[71,0,71,2],[71,3,71,14],[71,15,71,18],[71,19,71,26],[71,27,71,29],[71,30,71,37],[2,0,2,2],[3,0,3,1],[3,2,3,20],[3,22,3,27],[3,28,3,29],[3,30,3,32],[3,34,3,37],[78,0,78,1],[78,2,78,6],[78,7,78,8],[78,9,78,20],[78,22,78,28],[78,29,78,30],[75,31,75,32],[75,34,75,37],[77,0,77,2],[77,3,77,14],[77,15,77,18],[77,19,77,26],[77,27,77,29],[77,30,77,37],[75,0,75,1],[75,2,75,6],[75,7,75,8],[18,34,18,37],[19,0,19,3],[18,20,18,21],[18,22,18,31],[18,0,18,3],[18,4,18,12],[18,14,18,19],[18,32,18,33],[78,31,78,32],[78,34,78,37],[75,9,75,20],[75,22,75,28],[75,29,75,30],[72,31,72,32],[72,34,72,37],[74,0,74,2],[74,3,74,14],[74,15,74,18],[74,19,74,26],[74,27,74,29],[74,30,74,37],[72,0,72,1],[72,2,72,6],[72,7,72,8],[21,0,21,2],[21,3,21,10],[21,11,21,30],[21,31,21,35],[22,0,22,2],[22,3,22,10],[22,11,22,30],[22,31,22,35],[20,2,20,20],[20,22,20,27],[20,28,20,29],[20,30,20,32],[20,34,20,37],[32,0,32,3],[32,4,32,12],[32,14,32,19],[32,32,32,33],[30,0,30,2],[30,3,30,25],[30,26,30,29],[30,30,30,37],[31,0,31,1],[31,2,31,20],[31,22,31,27],[31,28,31,29],[31,30,31,32],[31,34,31,37],[13,0,13,2],[13,3,13,10],[13,11,13,30],[13,31,13,35],[13,36,13,37],[10,0,10,2],[10,3,10,10],[10,11,10,30],[10,31,10,35],[10,36,10,37],[11,0,11,2],[11,3,11,10],[11,11,11,30],[11,31,11,35],[11,36,11,37],[7,0,7,2],[7,3,7,10],[7,11,7,30],[7,31,7,35],[7,36,7,37],[12,0,12,2],[12,3,12,10],[12,11,12,30],[12,31,12,35],[12,36,12,37],[8,0,8,2],[8,3,8,10],[8,11,8,30],[8,31,8,35],[8,36,8,37],[9,0,9,2],[9,3,9,10],[9,11,9,30],[9,31,9,35],[9,36,9,37],[14,0,14,2],[14,3,14,10],[14,11,14,30],[14,31,14,35],[16,0,16,2],[16,3,16,25],[16,26,16,29],[16,30,16,37],[17,0,17,1],[17,2,17,20],[17,22,17,27],[17,28,17,29],[17,30,17,32],[17,34,17,37],[14,36,14,37],[23,0,23,2],[23,3,23,10],[23,11,23,30],[23,31,23,35],[23,36,23,37],[24,0,24,2],[24,3,24,10],[24,11,24,30],[24,31,24,35],[24,36,24,37],[25,0,25,2],[25,3,25,10],[25,11,25,30],[25,31,25,35],[25,36,25,37],[26,0,26,2],[26,3,26,10],[26,11,26,30],[26,31,26,35],[26,36,26,37],[35,0,35,2],[35,3,35,10],[35,11,35,30],[35,31,35,35],[36,0,36,2],[36,3,36,10],[36,11,36,30],[36,31,36,35],[27,0,27,2],[27,3,27,10],[27,11,27,30],[27,31,27,35],[28,0,28,2],[28,3,28,10],[28,11,28,30],[28,31,28,35],[34,0,34,1],[34,2,34,20],[34,22,34,27],[34,28,34,29],[34,30,34,32],[34,34,34,37],[32,34,32,37],[33,0,33,3],[37,0,37,2],[37,3,37,10],[37,11,37,30],[37,31,37,35],[37,36,37,37],[38,0,38,2],[38,3,38,10],[38,11,38,30],[38,31,38,35],[38,36,38,37],[39,0,39,2],[39,3,39,10],[39,11,39,30],[39,31,39,35],[39,36,39,37],[40,0,40,2],[40,3,40,10],[40,11,40,30],[40,31,40,35],[40,36,40,37],[41,0,41,2],[41,3,41,10],[41,11,41,30],[41,31,41,35],[41,36,41,37],[42,0,42,2],[42,3,42,10],[42,11,42,30],[42,31,42,35],[42,36,42,37],[2,3,2,25],[2,26,2,29],[2,30,2,37],[4,20,4,21],[4,22,4,31],[5,4,5,12],[5,14,5,19],[5,20,5,21],[5,22,5,31],[5,32,5,33],[33,4,33,12],[33,14,33,19],[33,20,33,21],[33,22,33,31],[33,32,33,33],[33,34,33,37],[19,4,19,12],[19,14,19,19],[19,20,19,21],[19,22,19,31],[19,32,19,33],[19,34,19,37],[27,36,27,37],[28,36,28,37],[32,20,32,21],[32,22,32,31],[21,36,21,37],[22,36,22,37]]}
["Rental Development Team",null,null,null,null,null,null,null,null,null,null,null,null,null,null,null,null,null,null,null,null,null,null,null,null,null,null,null,null,null,null,null,null,null,null,{"$f":"Overview!AJ1","v":"Rev. 9/14/20"}]
["Owner/Borrower Entity"]
["Legal Name",null,null,null,null,null,null,null,null,null,null,null,null,null,null,null,null,null,null,null,null,null,null,null,null,null,"Organization Type"]
["Address",null,null,null,null,null,null,null,null,null,null,null,null,null,null,null,null,null,null,null,null,"City",null,null,null,null,null,null,"State",null,null,null,null,"Zip"]
["Auth Rep Name",null,null,null,null,null,null,null,null,null,null,null,null,"Title",null,null,null,null,null,null,"Email",null,null,null,null,null,null,null,null,null,null,null,"Phone"]
["Contact Name",null,null,null,null,null,null,null,null,null,null,null,null,"Title",null,null,null,null,null,null,"Email",null,null,null,null,null,null,null,null,null,null,null,"Phone"]
["Address",null,null,null,null,null,null,null,null,null,null,null,null,null,null,null,null,null,null,null,null,"City",null,null,null,null,null,null,"State",null,null,null,null,"Zip"]
["File Name",null,null,"Bwr Applicant Reso",null,null,null,null,null,null,null,"Copy of the local government Resolution - sample on the PLHA webpage",null,null,null,null,null,null,null,null,null,null,null,null,null,null,null,null,null,null,null,"Saved on USB?"]
["File Name:",null,null,"Bwr Cert & Legal",null,null,null,null,null,null,null,"Reference 'Certifications & Legal Status' Worksheet.",null,null,null,null,null,null,null,null,null,null,null,null,null,null,null,null,null,null,null,"Saved on USB?"]
["File Name:",null,null,"Bwr OrgDoc1, OrgDoc2, etc…",null,null,null,null,null,null,null,"Reference Sponsor Org Docs worksheet",null,null,null,null,null,null,null,null,null,null,null,null,null,null,null,null,null,null,null,"Saved on USB?"]
["File Name:",null,null,"Bwr OrgChart",null,null,null,null,null,null,null,"Sponsor Organization Chart",null,null,null,null,null,null,null,null,null,null,null,null,null,null,null,null,null,null,null,"Saved on USB?"]
["File Name:",null,null,"Bwr Signature Block",null,null,null,null,null,null,null,"Signature Block - upload in Microsoft Word Document.",null,null,null,null,null,null,null,null,null,null,null,null,null,null,null,null,null,null,null,"Saved on USB?"]
["File Name",null,null,"Bwr Payee Data Record",null,null,null,null,null,null,null,"Payee Data Record STD-204 on the PLHA webpage.",null,null,null,null,null,null,null,null,null,null,null,null,null,null,null,null,null,null,null,"Saved on USB?"]
["File Name:",null,null,"Bwr Cert of Good Standing",null,null,null,null,null,null,null,"Must be dated 30 days or less from the application due date.",null,null,null,null,null,null,null,null,null,null,null,null,null,null,null,null,null,null,null,"Saved on USB?"]
["File Name:",null,null,"Bwr Tax-Exempt Status",null,null,null,null,null,null,null,"Evidence of tax-exempt status from IRS and from FTB for Corporations.",null,null,null,null,null,null,null,null,null,null,null,null,null,null,null,null,null,null,null,"Saved on USB?"]
["Managing General Partner"]
["Legal Name",null,null,null,null,null,null,null,null,null,null,null,null,null,null,null,null,null,null,null,null,null,null,null,null,null,"Organization Type"]
["Address",null,null,null,null,null,null,null,null,null,null,null,null,null,null,null,null,null,null,null,null,"City",null,null,null,null,null,null,"State",null,null,null,null,"Zip"]
["Auth Rep Name",null,null,null,null,null,null,null,null,null,null,null,null,"Title",null,null,null,null,null,null,"Email",null,null,null,null,null,null,null,null,null,null,null,"Phone"]
["Contact Name",null,null,null,null,null,null,null,null,null,null,null,null,"Title",null,null,null,null,null,null,"Email",null,null,null,null,null,null,null,null,null,null,null,"Phone"]
["Address",null,null,null,null,null,null,null,null,null,null,null,null,null,null,null,null,null,null,null,null,"City",null,null,null,null,null,null,"State",null,null,null,null,"Zip"]
["File Name",null,null,"MGP Applicant Reso",null,null,null,null,null,null,null,"Copy of the local government Resolution - sample on the PLHA webpage",null,null,null,null,null,null,null,null,null,null,null,null,null,null,null,null,null,null,null,"Saved on USB?"]
["File Name:",null,null,"MGP Cert & Legal",null,null,null,null,null,null,null,"Reference 'Certifications & Legal Status' Worksheet.",null,null,null,null,null,null,null,null,null,null,null,null,null,null,null,null,null,null,null,"Saved on USB?"]
["File Name:",null,null,"MGP OrgDoc1, OrgDoc2, etc…",null,null,null,null,null,null,null,"Reference Sponsor Org Docs worksheet",null,null,null,null,null,null,null,null,null,null,null,null,null,null,null,null,null,null,null,"Saved on USB?"]
["File Name:",null,null,"MGP OrgChart",null,null,null,null,null,null,null,"Sponsor Organization Chart",null,null,null,null,null,null,null,null,null,null,null,null,null,null,null,null,null,null,null,"Saved on USB?"]
["File Name:",null,null,"MGP Signature Block",null,null,null,null,null,null,null,"Signature Block - upload in Microsoft Word Document.",null,null,null,null,null,null,null,null,null,null,null,null,null,null,null,null,null,null,null,"Saved on USB?"]
["File Name",null,null,"MGP Payee Data Record",null,null,null,null,null,null,null,"Payee Data Record STD-204 on the PLHA webpage.",null,null,null,null,null,null,null,null,null,null,null,null,null,null,null,null,null,null,null,"Saved on USB?"]
["File Name:",null,null,"MGP Cert of Good Standing",null,null,null,null,null,null,null,"Must be dated 30 days or less from the application due date.",null,null,null,null,null,null,null,null,null,null,null,null,null,null,null,null,null,null,null,"Saved on USB?"]
["File Name:",null,null,"MGP Tax-Exempt Status",null,null,null,null,null,null,null,"Evidence of tax-exempt status from IRS and from FTB for Corporations.",null,null,null,null,null,null,null,null,null,null,null,null,null,null,null,null,null,null,null,"Saved on USB?"]
["Administrative General Partner #1"]
["Legal Name",null,null,null,null,null,null,null,null,null,null,null,null,null,null,null,null,null,null,null,null,null,null,null,null,null,"Organization Type"]
["Address",null,null,null,null,null,null,null,null,null,null,null,null,null,null,null,null,null,null,null,null,"City",null,null,null,null,null,null,"State",null,null,null,null,"Zip"]
["Auth Rep Name",null,null,null,null,null,null,null,null,null,null,null,null,"Title",null,null,null,null,null,null,"Email",null,null,null,null,null,null,null,null,null,null,null,"Phone"]
["Contact Name",null,null,null,null,null,null,null,null,null,null,null,null,"Title",null,null,null,null,null,null,"Email",null,null,null,null,null,null,null,null,null,null,null,"Phone"]
["Address",null,null,null,null,null,null,null,null,null,null,null,null,null,null,null,null,null,null,null,null,"City",null,null,null,null,null,null,"State",null,null,null,null,"Zip"]
["File Name",null,null,"AGP Applicant Reso",null,null,null,null,null,null,null,"Copy of the local government Resolution - sample on the PLHA webpage",null,null,null,null,null,null,null,null,null,null,null,null,null,null,null,null,null,null,null,"Saved on USB?"]
["File Name:",null,null,"AGP Cert & Legal",null,null,null,null,null,null,null,"Reference 'Certifications & Legal Status' Worksheet.",null,null,null,null,null,null,null,null,null,null,null,null,null,null,null,null,null,null,null,"Saved on USB?"]
["File Name:",null,null,"AGP OrgDoc1, OrgDoc2, etc…",null,null,null,null,null,null,null,"Reference Sponsor Org Docs worksheet",null,null,null,null,null,null,null,null,null,null,null,null,null,null,null,null,null,null,null,"Saved on USB?"]
["File Name:",null,null,"AGP OrgChart",null,null,null,null,null,null,null,"Sponsor Organization Chart",null,null,null,null,null,null,null,null,null,null,null,null,null,null,null,null,null,null,null,"Saved on USB?"]
["File Name:",null,null,"AGP Signature Block",null,null,null,null,null,null,null,"Signature Block - upload in Microsoft Word Document.",null,null,null,null,null,null,null,null,null,null,null,null,null,null,null,null,null,null,null,"Saved on USB?"]
["File Name",null,null,"AGP Payee Data Record",null,null,null,null,null,null,null,"Payee Data Record STD-204 on the PLHA webpage.",null,null,null,null,null,null,null,null,null,null,null,null,null,null,null,null,null,null,null,"Saved on USB?"]
["File Name:",null,null,"AGP Cert of Good Standing",null,null,null,null,null,null,null,"Must be dated 30 days or less from the application due date.",null,null,null,null,null,null,null,null,null,null,null,null,null,null,null,null,null,null,null,"Saved on USB?"]
["File Name:",null,null,"AGP Tax-Exempt Status",null,null,null,null,null,null,null,"Evidence of tax-exempt status from IRS and from FTB for Corporations.",null,null,null,null,null,null,null,null,null,null,null,null,null,null,null,null,null,null,null,"Saved on USB?"]
["Property Management Agent"]
["Legal Name",null,null,null,null,null,null,null,null,null,null,null,null,null,null,"Contact Name",null,null,null,null,null,null,null,null,null,null,null,"Email"]
["Phone",null,null,null,null,null,null,"Address",null,null,null,null,null,null,null,null,null,null,null,null,null,"City",null,null,null,null,null,null,null,"State",null,null,null,"Zip"]
["Financial Consultant"]
["Legal Name",null,null,null,null,null,null,null,null,null,null,null,null,null,null,"Contact Name",null,null,null,null,null,null,null,null,null,null,null,"Email"]
["Phone",null,null,null,null,null,null,"Address",null,null,null,null,null,null,null,null,null,null,null,null,null,"City",null,null,null,null,null,null,null,"State",null,null,null,"Zip"]
["Lead (primary) Service Provider"]
["Legal Name",null,null,null,null,null,null,null,null,null,null,null,null,null,null,"Contact Name",null,null,null,null,null,null,null,null,null,null,null,"Email"]
["Phone",null,null,null,null,null,null,"Address",null,null,null,null,null,null,null,null,null,null,null,null,null,"City",null,null,null,null,null,null,null,"State",null,null,null,"Zip"]
["Borrower Legal Counsel"]
["Legal Name",null,null,null,null,null,null,null,null,null,null,null,null,null,null,"Contact Name",null,null,null,null,null,null,null,null,null,null,null,"Email"]
["Phone",null,null,null,null,null,null,"Address",null,null,null,null,null,null,null,null,null,null,null,null,null,"City",null,null,null,null,null,null,null,"State",null,null,null,"Zip"]
["General Contractor"]
["Legal Name",null,null,null,null,null,null,null,null,null,null,null,null,null,null,"Contact Name",null,null,null,null,null,null,null,null,null,null,null,"Email"]
["Phone",null,null,null,null,null,null,"Address",null,null,null,null,null,null,null,null,null,null,null,null,null,"City",null,null,null,null,null,null,null,"State",null,null,null,"Zip"]
["Architect"]
["Legal Name",null,null,null,null,null,null,null,null,null,null,null,null,null,null,"Contact Name",null,null,null,null,null,null,null,null,null,null,null,"Email"]
["Phone",null,null,null,null,null,null,"Address",null,null,null,null,null,null,null,null,null,null,null,null,null,"City",null,null,null,null,null,null,null,"State",null,null,null,"Zip"]
["Development Funding Source "]
["Legal Name",null,null,null,null,null,null,null,null,null,null,null,null,null,null,"Contact Name",null,null,null,null,null,null,null,null,null,null,null,"Email"]
["Phone",null,null,null,null,null,null,"Address",null,null,null,null,null,null,null,null,null,null,null,null,null,"City",null,null,null,null,null,null,null,"State",null,null,null,"Zip"]
["Development Funding Source "]
["Legal Name",null,null,null,null,null,null,null,null,null,null,null,null,null,null,"Contact Name",null,null,null,null,null,null,null,null,null,null,null,"Email"]
["Phone",null,null,null,null,null,null,"Address",null,null,null,null,null,null,null,null,null,null,null,null,null,"City",null,null,null,null,null,null,null,"State",null,null,null,"Zip"]
["Development Funding Source "]
["Legal Name",null,null,null,null,null,null,null,null,null,null,null,null,null,null,"Contact Name",null,null,null,null,null,null,null,null,null,null,null,"Email"]
["Phone",null,null,null,null,null,null,"Address",null,null,null,null,null,null,null,null,null,null,null,null,null,"City",null,null,null,null,null,null,null,"State",null,null,null,"Zip"]
["Development Funding Source "]
["Legal Name",null,null,null,null,null,null,null,null,null,null,null,null,null,null,"Contact Name",null,null,null,null,null,null,null,null,null,null,null,"Email"]
["Phone",null,null,null,null,null,null,"Address",null,null,null,null,null,null,null,null,null,null,null,null,null,"City",null,null,null,null,null,null,null,"State",null,null,null,"Zip"]
["Rent/Operating Subsidy Source "]
["Legal Name",null,null,null,null,null,null,null,null,null,null,null,null,null,null,"Contact Name",null,null,null,null,null,null,null,null,null,null,null,"Email"]
["Phone",null,null,null,null,null,null,"Address",null,null,null,null,null,null,null,null,null,null,null,null,null,"City",null,null,null,null,null,null,null,"State",null,null,null,"Zip"]
["Rent/Operating Subsidy Source "]
["Legal Name",null,null,null,null,null,null,null,null,null,null,null,null,null,null,"Contact Name",null,null,null,null,null,null,null,null,null,null,null,"Email"]
["Phone",null,null,null,null,null,null,"Address",null,null,null,null,null,null,null,null,null,null,null,null,null,"City",null,null,null,null,null,null,null,"State",null,null,null,"Zip"]

{"sheet":"Dev Budget - Navigation Center","index":7,"n_rows":104,"n_cols":9,"rows_kept":104,"cut":false,"hidden":false,"merged":[[0,1,0,6]]}
["Development Budget","Navigation Center Sources of Funds",null,null,null,null,null,null,{"$f":"'PLHA Coverpage'!A46","v":"Rev. 9/14/20"}]
["Uses of Funds","PLHA",null,null,null,null,null,null,"Total Sources"]
["LAND COST/ACQUISITION"]
["Land Cost or Value",null,null,null,null,null,null,null,{"$f":"SUM(B4:G4)","v":0}]
["Demolition",null,null,null,null,null,null,null,{"$f":"SUM(B5:G5)","v":0}]
["Legal",null,null,null,null,null,null,null,{"$f":"SUM(B6:G6)","v":0}]
["Land Lease Rent Prepayment",null,null,null,null,null,null,null,{"$f":"SUM(B7:G7)","v":0}]
["Total Land Cost or Value",{"$f":"SUM(B4:B7)","v":0},0,0,0,0,0,{"$f":"SUM(H4:H7)","v":0},0]
["Existing Improvements Cost or Value",null,null,null,null,null,null,null,{"$f":"SUM(B9:G9)","v":0}]
["Off-Site Improvements",null,null,null,null,null,null,null,{"$f":"SUM(B10:G10)","v":0}]
["Total Acquisition Cost",{"$f":"SUM(B9:B10)","v":0},0,0,0,0,0,{"$f":"SUM(H9:H10)","v":0},0]
["Total Land Cost / Acquisition Cost",{"$f":"SUM(B8+B11)","v":0},0,0,0,0,0,{"$f":"SUM(H8+H11)","v":0},0]
["Predevelopment Interest/Holding Cost",null,null,null,null,null,null,null,{"$f":"SUM(B13:G13)","v":0}]
["Assumed, Accrued Interest on Existing Debt (Rehab/Acq)",null,null,null,null,null,null,null,{"$f":"SUM(B14:G14)","v":0}]
["Excess Purchase Price Over Appraisal",null,null,null,null,null,null,null,{"$f":"SUM(B15:G15)","v":0}]
["Relocation Expenses",null,null,null,null,null,null,null,{"$f":"SUM(B16:G16)","v":0}]
[{"$f":"IF('Development Info'!AF2<>\"Navigation Center Rehab\",\"NEW CONSTRUCTION\",\"REHABILITATION\")","v":"NEW CONSTRUCTION"}]
["Site Work",null,null,null,null,null,null,null,{"$f":"SUM(B18:G18)","v":0}]
["Structures",null,null,null,null,null,null,null,0]
["General Requirements",null,null,null,null,null,null,null,0]
["Contractor Overhead",null,null,null,null,null,null,null,0]
["Contractor Profit",null,null,null,null,null,null,null,0]
["Prevailing Wages",null,null,null,null,null,null,null,0]
["General Liability Insurance",null,null,null,null,null,null,null,0]
["Other: (Specify)",null,null,null,null,null,null,null,0]
["Other: (Specify)",null,null,null,null,null,null,null,0]
["Other: (Specify)",null,null,null,null,null,null,null,0]
["Other: (Specify)",null,null,null,null,null,null,null,0]
["Other: (Specify)",null,null,null,null,null,null,null,0]
["Other: (Specify)",null,null,null,null,null,null,null,0]
[{"$f":"IF('Development Info'!AF2<>\"Navigation Center Rehab\",\"Total New Construction Costs\",\"Total Rehabilitation Costs\")","v":"Total New Construction Costs"},{"$f":"SUM(B18:B30)","v":0},{"$f":"SUM(C18:C30)","v":0},0,0,0,0,{"$f":"SUM(H18:H30)","v":0},0]
["ARCHITECTURAL FEES"]
["Design",null,null,null,null,null,null,null,{"$f":"SUM(B33:G33)","v":0}]
["Supervision",null,null,null,null,null,null,null,{"$f":"SUM(B34:G34)","v":0}]
["Total Architectural Costs",{"$f":"SUM(B32:B34)","v":0},0,0,0,0,0,0,0]
["SURVEY & ENGINEERING"]
["Total Survey & Engineering",null,null,null,null,null,null,null,{"$f":"SUM(B37:G37)","v":0}]
["CONSTRUCTION INTEREST & FEES"]
["Construction Loan Interest",null,null,null,null,null,null,null,{"$f":"SUM(B39:G39)","v":0}]
["Origination Fee",null,null,null,null,null,null,null,0]
["Credit Enhancement/Application Fee",null,null,null,null,null,null,null,0]
["Bond Premium",null,null,null,null,null,null,null,0]
["Cost of Issuance",null,null,null,null,null,null,null,0]
["Title & Recording",null,null,null,null,null,null,null,0]
["Taxes",null,null,null,null,null,null,null,0]
["Insurance",null,null,null,null,null,null,null,0]
["Other: (Specify)",null,null,null,null,null,null,null,0]
["Other: (Specify)",null,null,null,null,null,null,null,0]
["Other: (Specify)",null,null,null,null,null,null,null,0]
["Total Construction Interest & Fees",{"$f":"SUM(B39:B49)","v":0},{"$f":"SUM(C39:C49)","v":0},0,0,0,0,{"$f":"SUM(H39:H49)","v":0},0]
["PERMANENT FINANCING"]
["Loan Origination Fee",null,null,null,null,null,null,null,{"$f":"SUM(B52:G52)","v":0}]
["Credit Enhancement/Application Fee",null,null,null,null,null,null,null,0]
["Title & Recording",null,null,null,null,null,null,null,0]
["Taxes",null,null,null,null,null,null,null,0]
["Insurance",null,null,null,null,null,null,null,0]
["Other: (Specify)",null,null,null,null,null,null,null,0]
["Other: (Specify)",null,null,null,null,null,null,null,0]
["Total Permanent Financing Costs",{"$f":"SUM(B52:B58)","v":0},0,0,0,0,0,0,0]
["Subtotals Forward",{"$f":"SUM(B8+B11+B13+B14+B15+B16+B31+B35+B37+B50+B59)","v":0},0,0,0,0,0,0,0]
["LEGAL FEES"]
["Legal Paid by Applicant",null,null,null,null,null,null,null,{"$f":"SUM(B62:G62)","v":0}]
["Other: (Specify)",null,null,null,null,null,null,null,{"$f":"SUM(B63:G63)","v":0}]
["Other: (Specify)",null,null,null,null,null,null,null,{"$f":"SUM(B64:G64)","v":0}]
["Total Attorney Costs",{"$f":"SUM(B61:B64)","v":0},{"$f":"SUM(C61:C64)","v":0},0,0,0,0,{"$f":"SUM(H61:H64)","v":0},0]
["RESERVES"]
["Operating Reserve",null,null,null,null,null,null,null,{"$f":"SUM(B67:G67)","v":0}]
["Replacement Reserve",null,null,null,null,null,null,null,{"$f":"SUM(B68:G68)","v":0}]
["Other: (Specify)",null,null,null,null,null,null,null,{"$f":"SUM(B69:G69)","v":0}]
["Other: (Specify)",null,null,null,null,null,null,null,{"$f":"SUM(B70:G70)","v":0}]
["Other: (Specify)",null,null,null,null,null,null,null,{"$f":"SUM(B71:G71)","v":0}]
["Total Reserve Costs",{"$f":"SUM(B67:B71)","v":0},0,0,0,0,0,0,0]
["CONTINGENCY COSTS"]
["Construction Hard Cost Contingency ",null,null,null,null,null,null,null,{"$f":"SUM(B74:G74)","v":0}]
["Soft Cost Contingency",null,null,null,null,null,null,null,{"$f":"SUM(B75:G75)","v":0}]
["Total Contingency Costs",{"$f":"SUM(B74:B75)","v":0},0,0,0,0,0,{"$f":"SUM(H74:H75)","v":0},0]
["OTHER PROJECT COSTS"]
["TCAC App/Allocation/Monitoring Fees",null,null,null,null,null,null,null,{"$f":"SUM(B78:G78)","v":0}]
["Environmental Audit",null,null,null,null,null,null,null,0]
["Local Development Impact Fees",null,null,null,null,null,null,null,0]
["Permit Processing Fees",null,null,null,null,null,null,null,0]
["Capital Fees",null,null,null,null,null,null,null,0]
["Marketing",null,null,null,null,null,null,null,0]
["Furnishings",null,null,null,null,null,null,null,0]
["Market Study",null,null,null,null,null,null,null,0]
["Accounting/Reimbursable",null,null,null,null,null,null,null,0]
["Appraisal Costs",null,null,null,null,null,null,null,0]
["Other: (Specify)",null,null,null,null,null,null,null,0]
["Other: (Specify)",null,null,null,null,null,null,null,0]
["Other: (Specify)",null,null,null,null,null,null,null,0]
["Other: (Specify)",null,null,null,null,null,null,null,0]
["Other: (Specify)",null,null,null,null,null,null,null,0]
["Other: (Specify)",null,null,null,null,null,null,null,0]
["Total Other Costs",{"$f":"SUM(B78:B93)","v":0},{"$f":"SUM(C78:C93)","v":0},0,0,0,0,{"$f":"SUM(H78:H93)","v":0},0]
["SUBTOTAL PROJECT COST",{"$f":"SUM(B60+B65+B72+B76+B94)","v":0},0,0,0,0,0,0,0]
["DEVELOPER COSTS"]
["Developer Overhead/Profit",null,null,null,null,null,null,null,{"$f":"SUM(B97:G97)","v":0}]
["Consultant/Processing Agent",null,null,null,null,null,null,null,0]
["Project Administration",null,null,null,null,null,null,null,0]
["Broker Fees Paid  to a Related Party",null,null,null,null,null,null,null,0]
["Construction Oversight by Developer",null,null,null,null,null,null,null,0]
["Other: (Specify)",null,null,null,null,null,null,null,0]
["Total Developer Costs",{"$f":"SUM(B97:B102)","v":0},0,0,0,0,0,{"$f":"SUM(H97:H102)","v":0},0]
["TOTAL PROJECT COST",{"$f":"SUM(B95+B103)","v":0},0,0,0,0,0,{"$f":"SUM(H95+H103)","v":0},0]

{"sheet":"Env & Land Use","index":8,"n_rows":46,"n_cols":36,"rows_kept":46,"cut":false,"hidden":false,"merged":[[0,0,0,34],[0,35,0,37],[4,0,4,1],[4,2,4,22],[4,24,4,29],[4,30,4,31],[4,34,4,37],[5,0,5,37],[1,0,1,37],[2,0,2,37],[3,0,3,2],[3,26,3,29],[3,3,3,25],[3,30,3,37],[6,0,6,2],[6,3,6,21],[6,22,6,26],[6,27,6,37],[7,0,7,1],[7,2,7,22],[7,24,7,29],[7,30,7,31],[7,34,7,37],[12,0,12,37],[13,0,13,9],[13,10,13,13],[13,14,13,17],[13,18,13,22],[13,23,13,27],[13,28,13,32],[13,33,13,37],[8,29,8,30],[8,31,8,37],[9,0,9,37],[10,0,10,37],[11,0,11,35],[11,36,11,37],[8,0,8,2],[8,3,8,9],[8,10,8,11],[8,12,8,18],[8,19,8,21],[8,22,8,28],[14,33,14,37],[15,0,15,9],[15,10,15,13],[15,14,15,17],[15,18,15,22],[15,23,15,27],[15,28,15,32],[15,33,15,37],[14,0,14,9],[14,10,14,13],[14,14,14,17],[14,18,14,22],[14,23,14,27],[14,28,14,32],[20,0,20,5],[20,6,20,18],[20,19,20,24],[20,25,20,37],[21,0,21,5],[21,6,21,18],[21,19,21,24],[21,25,21,37],[16,0,16,37],[17,0,17,37],[18,0,18,37],[19,0,19,23],[19,24,19,27],[19,28,19,32],[22,0,22,4],[22,5,22,20],[22,22,22,29],[22,30,22,31],[22,34,22,37],[23,0,23,2],[23,3,23,10],[23,11,23,30],[23,31,23,35],[23,36,23,37],[26,0,26,37],[27,0,27,12],[27,13,27,17],[27,18,27,25],[27,26,27,34],[27,35,27,37],[24,0,24,2],[24,3,24,10],[24,11,24,30],[24,31,24,35],[24,36,24,37],[25,0,25,2],[25,3,25,10],[25,11,25,30],[25,31,25,35],[25,36,25,37],[28,0,28,12],[28,13,28,17],[28,18,28,25],[28,26,28,34],[28,35,28,37],[29,0,29,12],[29,13,29,17],[29,18,29,25],[29,26,29,34],[29,35,29,37],[30,0,30,12],[30,13,30,17],[30,18,30,25],[30,26,30,34],[30,35,30,37],[31,0,31,12],[31,13,31,17],[31,18,31,25],[31,26,31,34],[31,35,31,37],[32,0,32,12],[32,13,32,17],[32,18,32,25],[32,26,32,34],[32,35,32,37],[33,0,33,12],[33,13,33,17],[33,18,33,25],[33,26,33,34],[33,35,33,37],[34,0,34,12],[34,13,34,17],[34,18,34,25],[34,26,34,34],[34,35,34,37],[35,0,35,12],[35,13,35,17],[35,18,35,25],[35,26,35,34],[35,35,35,37],[36,0,36,12],[36,13,36,17],[36,18,36,25],[36,26,36,34],[36,35,36,37],[37,0,37,12],[37,13,37,17],[37,18,37,25],[37,26,37,34],[37,35,37,37],[42,0,42,5],[42,6,42,18],[42,19,42,24],[42,25,42,37],[43,0,43,5],[43,6,43,18],[43,19,43,24],[43,25,43,37],[38,0,38,37],[39,0,39,37],[40,0,40,37],[41,0,41,23],[41,24,41,27],[41,28,41,32],[45,0,45,2],[45,3,45,10],[45,11,45,30],[45,31,45,35],[45,36,45,37],[44,0,44,4],[44,5,44,20],[44,22,44,27],[44,28,44,29],[44,30,44,32],[44,34,44,37]]}
["Verification of Environmental Review & Land Use Entitlements",null,null,null,null,null,null,null,null,null,null,null,null,null,null,null,null,null,null,null,null,null,null,null,null,null,null,null,null,null,null,null,null,null,null,{"$f":"'PLHA Coverpage'!A46","v":"Rev. 9/14/20"}]
["TO THE APPLICANT: Submit this form to the Agency or Department of local government responsible for administration of the items listed. This form may be submitted to more than one Agency or Department, if necessary. Applicants need only submit one completed form per locality. If the NEPA Responsible Entity is not a local government, submit a copy of this form to the appropriate NEPA Responsible Entity. If an item is not required, include the reason why in the box provided."]
["Applicant"]
["Entity Name",null,null,null,null,null,null,null,null,null,null,null,null,null,null,null,null,null,null,null,null,null,null,null,null,null,"Applicant Type"]
["Address",null,null,null,null,null,null,null,null,null,null,null,null,null,null,null,null,null,null,null,null,null,null,"City",null,null,null,null,null,null,"State",null,null,"Zip"]
["Rental Project or Navigation Center"]
["Project Name",null,null,null,null,null,null,null,null,null,null,null,null,null,null,null,null,null,null,null,null,null,"Project County"]
["Address",null,null,null,null,null,null,null,null,null,null,null,null,null,null,null,null,null,null,null,null,null,null,"City",null,null,null,null,null,null,"State",null,null,"Zip"]
["Census Tract",null,null,null,null,null,null,null,null,null,"APN",null,null,null,null,null,null,null,null,"Census Tract",null,null,null,null,null,null,null,null,null,"APN"]
["Environmental Review"]
["To the Local Jurisdiction or NEPA Responsible Entity: The Applicant named above will submit an application to the State of California, Department of Housing and Community Development, requesting funding for the project named above under the PLHA Program. Projects will be evaluated based upon readiness. Please answer the following questions:"]
["Is this Rental Project or Navigation Center approved \"by-right\"?"]
["This form must be completed in its entirety regardless of the answer to the preceding question."]
["All Environmental Clearances NEPA and California Environmental Quality Act (CEQA) necessary to begin construction:",null,null,null,null,null,null,null,null,null,"Not Required for this Project",null,null,null,"Has a Negative Declaration been issued? ",null,null,null,"Final Date of Public Comment Period",null,null,null,null,"Date(s) EIR Certified / Notice of Determination filed",null,null,null,null,"Date Appeal Period Ends",null,null,null,null,"Have any appeals been filed?"]
["NEPA"]
["CEQA"]
["In the box below, explain why any items are not required and include documentation, if applicable:"]
[]
["Signature Block for Environmental Review"]
["I certify that the information on this form is true and correct to the best of my knowledge.",null,null,null,null,null,null,null,null,null,null,null,null,null,null,null,null,null,null,null,null,null,null,null,"Date: "]
["Printed name of party completing form:",null,null,null,null,null,null,null,null,null,null,null,null,null,null,null,null,null,null,"Signature of party completing form:"]
["Title of party completing form:",null,null,null,null,null,null,null,null,null,null,null,null,null,null,null,null,null,null,"Agency and/or Dept. name:"]
["Agency/Dept. Address",null,null,null,null,null,null,null,null,null,null,null,null,null,null,null,null,null,null,null,null,"City",null,null,null,null,null,null,null,null,"State",null,null,"Zip"]
["File Name:",null,null,"Auth to Use Grant Funds",null,null,null,null,null,null,null,"For National Environmental Policy Act (NEPA) only, provide a copy of the HUD 7015.16 \"Authority To Use Grant Funds\" or clarify current status of the issuance of HUD form.",null,null,null,null,null,null,null,null,null,null,null,null,null,null,null,null,null,null,null,"Saved on USB?"]
["File Name:",null,null,"Environmental",null,null,null,null,null,null,null,"Provide a copy of all environmental clearances or Notice of Exemption.",null,null,null,null,null,null,null,null,null,null,null,null,null,null,null,null,null,null,null,"Saved on USB?"]
["File Name:",null,null,"Environmental Verify",null,null,null,null,null,null,null,"Provide a PDF copy of this worksheet with the wet signature of the person(s) completing the Environmental Review.",null,null,null,null,null,null,null,null,null,null,null,null,null,null,null,null,null,null,null,"Saved on USB?"]
["Land Use Entitlements  (indicate below the status of the following local approvals)"]
["All necessary and discretionary public land use approvals except building permits and other ministerial approvals are:",null,null,null,null,null,null,null,null,null,null,null,null,"Not Required for this Project",null,null,null,null,"Project is consistent with local planning documents & zoning ordinances",null,null,null,null,null,null,null,"An Application has been submitted, accepted and deemed complete for processing.",null,null,null,null,null,null,null,null,"Date Approved"]
["General Plan Amendment:"]
["Site Plan Review:"]
["Zoning Approval:"]
["Conditional Use Permits:"]
["Density Bonus:"]
["Other Variances: "]
["Other Variances: "]
["Other Variances: "]
["Other Variances: "]
["Other Variances: "]
["In the box below, explain why any items are not required and include documentation, if applicable:"]
[]
["Signature Block for Land Use Entitlements"]
["I certify that the information on this form is true and correct to the best of my knowledge.",null,null,null,null,null,null,null,null,null,null,null,null,null,null,null,null,null,null,null,null,null,null,null,"Date: "]
["Printed name of party completing form:",null,null,null,null,null,null,null,null,null,null,null,null,null,null,null,null,null,null,"Signature of party completing form:"]
["Title of party completing form:",null,null,null,null,null,null,null,null,null,null,null,null,null,null,null,null,null,null,"Agency and/or Dept. name:"]
["Agency/Dept. Address",null,null,null,null,null,null,null,null,null,null,null,null,null,null,null,null,null,null,null,null,"City",null,null,null,null,null,null,"State",null,null,null,null,"Zip"]
["File Name:",null,null,"Land Use Verify",null,null,null,null,null,null,null,"Provide a PDF copy of this sheet with the wet signature of the person(s) completing the Land Use Entitlements section.",null,null,null,null,null,null,null,null,null,null,null,null,null,null,null,null,null,null,null,"Saved on USB?"]

{"sheet":"Certification & Legal","index":9,"n_rows":38,"n_cols":37,"rows_kept":38,"cut":false,"hidden":false,"merged":[[37,0,37,8],[37,10,37,18],[37,20,37,33],[33,0,33,37],[34,0,34,2],[34,3,34,10],[34,11,34,30],[34,31,34,35],[34,36,34,37],[35,0,35,37],[36,0,36,8],[36,10,36,18],[36,20,36,33],[36,35,36,37],[30,0,30,35],[30,36,30,37],[31,0,31,35],[31,36,31,37],[32,0,32,35],[32,36,32,37],[27,0,27,35],[27,36,27,37],[28,0,28,35],[28,36,28,37],[29,0,29,35],[29,36,29,37],[26,0,26,35],[26,36,26,37],[20,0,20,35],[20,36,20,37],[21,0,21,35],[21,36,21,37],[22,0,22,35],[22,36,22,37],[23,0,23,35],[23,36,23,37],[24,0,24,35],[24,36,24,37],[25,0,25,37],[19,0,19,37],[11,0,11,8],[11,10,11,18],[11,20,11,33],[12,0,12,37],[14,0,14,37],[15,0,15,37],[16,0,16,37],[17,0,17,37],[13,0,13,37],[18,0,18,37],[10,0,10,8],[10,10,10,18],[10,20,10,33],[10,35,10,37],[0,0,0,34],[0,35,0,37],[1,0,1,37],[2,0,2,37],[3,0,3,37],[4,0,4,37],[5,0,5,37],[6,0,6,37],[7,0,7,37],[8,0,8,37],[9,0,9,37]]}
["Certification & Legal Status",null,null,null,null,null,null,null,null,null,null,null,null,null,null,null,null,null,null,null,null,null,null,null,null,null,null,null,null,null,null,null,null,null,null,{"$f":"'PLHA Coverpage'!A46","v":"Rev. 9/14/20"}]
["On behalf of the entity identified in the signature block below, I certify that:"]
["1. The information, statements and attachments included in this application are, to the best of my knowledge and belief, true and correct."]
["2. I possess the legal authority to submit this application on behalf of the entity identified in the signature block."]
["3. The following is a complete disclosure of all identities of interest - of all persons or entities, including affiliates, that will provide goods or services to the Project either (a) in one or more capacity or (b) that qualify as a \"Related Party\" to any person or entity that will provide goods or services to the project. \"Related Party\" is defined in Section 10302 of the California Code of Regulations (CTCAC Regulations): "]
[]
["4. As of the date of application, the Activity or Project, or the real property on which the Project is proposed (Property) is not part to or the subject of any claim or action at the State or Federal appellate level."]
["5. I have disclosed and described below any claim or action undertaken which affects or potentially affects the feasibility of the Activity or Project."]
["In addition, I acknowledge that all information in this application and attachments is public, and may be disclosed by the State."]
[]
["     "]
["Printed Name",null,null,null,null,null,null,null,null,null,"Title of Signatory",null,null,null,null,null,null,null,null,null,"Signature",null,null,null,null,null,null,null,null,null,null,null,null,null,null,null,"Date"]
["Legal Disclosure"]
["Public entity applicants without an ownership interest in the proposed project, including but not limited to cities, counties, and joint powers authorities with 100 or more members, are not required to respond to this questionnaire. "]
["For purposes of the following questions, and with the exceptions noted below, the term “applicant” shall include the applicant and joint applicant, and any subsidiary of the applicant or joint applicant if the subsidiary is involved in (for example, as a guarantor) or will be benefited by the application, Activity or Project. "]
["In addition to each of these entities themselves, the term “applicant” shall also include the direct and indirect holders of more than ten percent (10%) of the ownership interests in the entity, as well as the officers, directors, principals and senior executives of the entity if the entity is a corporation, the general and limited partners of the entity if the entity is a partnership, and the members or managers of the entity if the entity is a limited liability company. For projects using tax-exempt bonds, it shall also include the individual who will be executing the bond purchase agreement."]
["The following questions must be responded to for each entity and person qualifying as an \"applicant,\" or \"joint applicant\" as defined above.  "]
["Explain all positive responses on a separate sheet and include with this questionnaire in the application."]
["Members of the boards of directors of non-profit corporations, including officers of the boards, are also not required to respond. However, chief executive officers (Executive Directors, Chief Executive Officers, Presidents or their equivalent) must respond. Chief Financial Officers (Treasurers, Chief Financial Officers, or their equivalent) must also respond."]
["Civil Matters"]
["1. Has the applicant filed a bankruptcy or receivership case or had a bankruptcy or receivership action commenced against it, defaulted on a loan or been foreclosed against in past ten years? "]
["2. Is the applicant currently a party to, or been notified that it may become a party to, any civil litigation that may materially and adversely affect (a) the financial condition of the applicant’s business, or (b) the project that is the subject of the application?"]
["3. Have there been any administrative or civil settlements, decisions, or judgments against the applicant within the past ten years that materially and adversely affected (a) the financial condition of the applicant’s business, or (b) the project that is the subject of the application?"]
["4. Is the applicant currently subject to, or been notified that it may become subject to, any civil or administrative proceeding, examination, or investigation by a local, state or federal licensing or accreditation agency, a local, state or federal taxing authority, or a local, state or federal regulatory or enforcement agency? "]
["5. In the past ten years, has the applicant been subject to any civil or administrative proceeding, examination, or investigation by a local, state or federal licensing or accreditation agency, a local, state or federal taxing authority, or a local, state or federal regulatory or enforcement agency that resulted in a settlement, decision, or judgment? "]
["Criminal Matters"]
["6. Is the applicant currently a party to, or the subject of, or been notified that it may become a party to or the subject of, any criminal litigation, proceeding, charge, complaint, examination or investigation, of any kind, involving, or that could result in, felony charges against the applicant? "]
["7. Is the applicant currently a party to, or the subject of, or been notified that it may become a party to or the subject of, any criminal litigation, proceeding, charge, complaint, examination or investigation, of any kind, involving, or that could result in, misdemeanor charges against the applicant for matters relating to the conduct of the applicant’s business? "]
["8. Is the applicant currently a party to, or the subject of, or been notified that it may become a party to or the subject of, any criminal litigation, proceeding, charge, complaint, examination or investigation, of any kind, involving, or that could result in, criminal charges (whether felony or misdemeanor) against the applicant for any financial or fraud related crime? "]
["9. Is the applicant currently a party to, or the subject of, or been notified that it may become a party to or the subject of, any criminal litigation, proceeding, charge, complaint, examination or investigation, of any kind, that could materially affect the financial condition of the applicant’s business?"]
["10. Within the past ten years, has the applicant been convicted of any felony? "]
["11. Within the past ten years, has the applicant been convicted of any misdemeanor related to the conduct of the applicant’s business?  "]
["12. Within the past ten years, has the applicant been convicted of any misdemeanor for any financial or fraud related crime? "]
["Please provide a letter of explanation if you responded \"Yes\" to any of the questions above."]
["File Name:",null,null,"Cert. Letter of Explanation",null,null,null,null,null,null,null,"'Letter of explanation for any \"red\" shaded cells above. ",null,null,null,null,null,null,null,null,null,null,null,null,null,null,null,null,null,null,null,"Saved on USB?"]
[]
["     "]
["Printed Name",null,null,null,null,null,null,null,null,null,"Title of Signatory",null,null,null,null,null,null,null,null,null,"Signature",null,null,null,null,null,null,null,null,null,null,null,null,null,null,null,"Date"]

{"sheet":"Sponsor Org Docs","index":10,"n_rows":10,"n_cols":1,"rows_kept":10,"cut":false,"hidden":false,"merged":[[1,0,1,9],[2,0,2,9],[3,0,3,9],[4,0,4,9],[0,0,0,9],[5,0,5,9],[6,0,6,9],[7,0,7,9],[8,0,8,9],[9,0,9,9]]}
["Sponsor Organizational Documents"]
["Corporations  - click here for sample resolution"]
["Articles of Incorporation (Corp. Code §154, 200 and 202) as certified by the CA Secretary of State.\nBylaws and any amendments thereto (Corp. Code §207(b), 211 and 212)\nCertificate of Amendment of Articles of Incorporation (Corp. Code §900-910 (general stock), §5810-5820 (public benefit and religious corporations), §7810-7820 (mutual benefit corporations), or §12500-12510 (general cooperative corporations)) as applicable.\nRestated Articles of Incorporation (Corp. Code §901, 906, 910 (general stock), §5811, 5815, 5819 (public benefit and religious corporations), §7811, 7815 and 7819 (mutual benefit corporations) and §12501, 12506 and 12510 (general cooperative corporations)) as applicable.\nStatement of Information (CA Secretary of State form SI-100 or SI-200)\nShareholder Agreements (Corp. Code §186) if applicable.\nCertificate of Good Standing certified by Secretary of State."]
["Any other CA Secretary of State filings applicable to revivals, conversions or mergers."]
["Limited Liability Company  - click here for sample resolution"]
["Articles of Organization (CA Secretary of State form LLC-1)\nCertificate of Amendment (CA Secretary of State form LLC-2) if applicable.\nRestated Articles of Organization (CA Secretary of State form LLC-10) if applicable.\nCertificate of Correction (CA Secretary of State form LLC-11) if applicable.\nStatement of Information (CA Secretary of State form LLC-12 or LLC-12NC)\nOperating Agreement (Corp. Code §17707.02(s) and 17701.10.)\nCertificate of Good Standing certified by Secretary of State."]
["Any other CA Secretary of State filings applicable to revivals, conversions or mergers."]
["Limited Partnership  - click here for sample resolution"]
["Certificate of Limited Partnership (CA Secretary of State form LP-1)\nAmendment to Certificate of Limited Partnership (CA Secretary of State form LP-2) if applicable.\nCertificate of Correction (CA Secretary of State form LP-2) if applicable.\nLimited Partnership Agreement (CA Corp. Code §15901.02(x) and 15901.10)\nCertificate of Good Standing certified by Secretary of State."]
["Any other CA Secretary of State filings applicable to revivals, conversions or mergers."]

{"sheet":"Selection Criteria - Scoring","index":11,"n_rows":60,"n_cols":41,"rows_kept":60,"cut":false,"hidden":false,"merged":[[39,1,39,10],[39,11,39,19],[39,20,39,25],[39,26,39,31],[39,32,39,34],[39,35,39,37],[30,11,30,19],[55,1,55,22],[55,23,55,31],[55,32,55,37],[44,11,44,30],[44,31,44,35],[44,36,44,37],[50,1,50,22],[50,23,50,31],[50,32,50,37],[51,1,51,22],[51,23,51,31],[51,32,51,37],[53,1,53,22],[53,23,53,31],[53,32,53,37],[52,1,52,22],[52,23,52,31],[54,1,54,22],[54,23,54,31],[54,32,54,37],[40,1,40,10],[40,11,40,19],[40,20,40,25],[40,26,40,31],[40,32,40,34],[40,35,40,37],[52,32,52,37],[48,23,48,31],[49,23,49,31],[47,1,47,22],[45,36,45,37],[47,32,47,37],[49,32,49,37],[43,0,43,2],[44,0,44,2],[44,3,44,10],[47,23,47,31],[45,0,45,35],[48,1,48,22],[49,1,49,22],[48,32,48,37],[11,11,11,13],[12,11,12,13],[12,1,12,10],[12,29,12,34],[14,24,14,28],[23,1,23,10],[29,1,29,10],[29,11,29,19],[29,20,29,25],[29,26,29,31],[29,32,29,34],[20,14,20,23],[21,14,21,23],[22,14,22,23],[23,14,23,23],[11,24,11,28],[12,24,12,28],[13,24,13,28],[15,24,15,28],[16,24,16,28],[17,24,17,28],[18,24,18,28],[23,11,23,13],[15,11,15,13],[21,11,21,13],[16,11,16,13],[19,11,19,13],[22,11,22,13],[35,31,35,35],[14,11,14,13],[14,29,14,34],[15,1,15,10],[20,29,20,34],[16,29,16,34],[17,29,17,34],[18,29,18,34],[21,29,21,34],[20,1,20,10],[19,1,19,10],[16,1,16,10],[17,1,17,10],[17,11,17,13],[18,1,18,10],[18,11,18,13],[15,29,15,34],[21,1,21,10],[34,35,34,37],[34,26,34,31],[35,3,35,10],[35,11,35,30],[34,11,34,19],[34,1,34,10],[35,36,35,37],[37,20,37,25],[38,20,38,25],[37,0,37,10],[37,26,37,31],[37,32,37,34],[37,35,37,37],[38,1,38,10],[38,11,38,19],[38,26,38,31],[38,32,38,34],[38,35,38,37],[37,11,37,19],[36,0,36,35],[36,36,36,37],[33,20,33,25],[34,20,34,25],[30,26,30,31],[30,20,30,25],[34,32,34,34],[58,1,58,22],[58,23,58,31],[58,32,58,37],[59,11,59,30],[56,23,56,31],[56,32,56,37],[57,1,57,22],[57,23,57,31],[57,32,57,37],[59,0,59,2],[59,3,59,10],[59,36,59,37],[59,31,59,35],[56,1,56,22],[43,3,43,10],[43,11,43,30],[43,31,43,35],[43,36,43,37],[35,0,35,2],[41,1,41,10],[41,11,41,19],[41,20,41,25],[41,26,41,31],[46,23,46,31],[46,32,46,37],[46,0,46,22],[41,32,41,34],[41,35,41,37],[42,1,42,10],[42,11,42,19],[42,20,42,25],[42,26,42,31],[42,32,42,34],[42,35,42,37],[7,0,7,33],[7,34,7,35],[7,36,7,37],[31,32,31,34],[28,32,28,34],[27,32,27,34],[28,26,28,31],[26,32,26,34],[26,26,26,31],[25,36,25,37],[27,20,27,25],[28,20,28,25],[31,26,31,31],[31,35,31,37],[26,0,26,10],[27,1,27,10],[28,35,28,37],[26,35,26,37],[26,11,26,19],[26,20,26,25],[11,0,11,10],[11,29,11,34],[24,0,24,35],[24,36,24,37],[32,32,32,34],[32,35,32,37],[33,26,33,31],[33,35,33,37],[33,1,33,10],[25,0,25,35],[27,26,27,31],[32,26,32,31],[27,35,27,37],[32,11,32,19],[33,11,33,19],[30,32,30,34],[30,35,30,37],[29,35,29,37],[30,1,30,10],[28,1,28,10],[31,1,31,10],[32,1,32,10],[33,32,33,34],[27,11,27,19],[28,11,28,19],[31,11,31,19],[31,20,31,25],[32,20,32,25],[0,35,0,37],[1,36,1,37],[1,0,1,30],[1,31,1,35],[0,0,0,34],[5,0,5,33],[5,34,5,35],[5,36,5,37],[6,0,6,33],[6,34,6,35],[6,36,6,37],[3,0,3,33],[3,34,3,35],[3,36,3,37],[4,0,4,33],[4,34,4,35],[4,36,4,37],[2,0,2,35],[2,36,2,37],[8,0,8,35],[8,36,8,37],[9,0,9,33],[9,34,9,35],[9,36,9,37],[10,36,10,37],[22,29,22,34],[23,29,23,34],[22,1,22,10],[20,11,20,13],[10,0,10,35],[13,1,13,10],[13,11,13,13],[13,29,13,34],[14,1,14,10],[11,14,11,23],[12,14,12,23],[13,14,13,23],[14,14,14,23],[15,14,15,23],[16,14,16,23],[17,14,17,23],[18,14,18,23],[19,14,19,23],[19,24,19,28],[20,24,20,28],[21,24,21,28],[22,24,22,28],[23,24,23,28],[20,35,20,37],[21,35,21,37],[22,35,22,37],[23,35,23,37],[19,29,19,34],[11,35,11,37],[12,35,12,37],[13,35,13,37],[14,35,14,37],[15,35,15,37],[16,35,16,37],[17,35,17,37],[18,35,18,37],[19,35,19,37]]}
["Selection Criteria §403(a)",null,null,null,null,null,null,null,null,null,null,null,null,null,null,null,null,null,null,null,null,null,null,null,null,null,null,null,null,null,null,null,null,null,null,{"$f":"'PLHA Coverpage'!A46","v":"Rev. 9/14/20"}]
["100 Points Max (points in blue shaded cells)",null,null,null,null,null,null,null,null,null,null,null,null,null,null,null,null,null,null,null,null,null,null,null,null,null,null,null,null,null,null,"Total Score",null,null,null,null,{"$f":"AK3+AK9+AK25","v":0}]
["(1) Priority - 25 Points Max",null,null,null,null,null,null,null,null,null,null,null,null,null,null,null,null,null,null,null,null,null,null,null,null,null,null,null,null,null,null,null,null,null,null,null,{"$f":"SUM(AK4:AL5)+MAX(AK6,AK7,AK8)","v":0}]
["(A) Population: Is the Applicant a county that has a population of 200,000 or less within the unincorporated areas of the county? - 5 points",null,null,null,null,null,null,null,null,null,null,null,null,null,null,null,null,null,null,null,null,null,null,null,null,null,null,null,null,null,null,null,null,null,null,null,{"$f":"IF(AI4=\"Yes\",5,0)","v":0}]
["(B) Prior Award: Did the Applicant receive an award based on the formula specified in 42 USC, Section 5306 in 2016? 5 points",null,null,null,null,null,null,null,null,null,null,null,null,null,null,null,null,null,null,null,null,null,null,null,null,null,null,null,null,null,null,null,null,null,null,null,{"$f":"IF(AI5=\"No\",5,0)","v":0}]
["(C)(i) Assistance for Homeless Persons through Program Activities: Application will assist persons experiencing or At risk of homelessness, including but not limited to, through programs providing rapid rehousing, or rental assistance, or operating assistance to navigation centers? - 15 points; OR",null,null,null,null,null,null,null,null,null,null,null,null,null,null,null,null,null,null,null,null,null,null,null,null,null,null,null,null,null,null,null,null,null,null,null,{"$f":"IF(AI6=\"Yes\",15,0)","v":0}]
["(C)(ii) Assistance for Homeless Persons through Development of Navigation Centers: Application is for construction of a navigation center(s)? - 15 points; OR",null,null,null,null,null,null,null,null,null,null,null,null,null,null,null,null,null,null,null,null,null,null,null,null,null,null,null,null,null,null,null,null,null,null,null,{"$f":"IF(AI7=\"Yes\",15,0)","v":0}]
["(C)(ii) Assistance for Homeless Persons through Rental Projects: Application is for the new construction, rehabilitation, or preservation of permanent or transitional rental housing in which all or at least 10% of the units are restricted to occupancy by tenants who are homeless or At risk of homelessness? - 15 points",null,null,null,null,null,null,null,null,null,null,null,null,null,null,null,null,null,null,null,null,null,null,null,null,null,null,null,null,null,null,null,null,null,null,null,{"$f":"IF(AI8=\"Yes\",15,0)","v":0}]
["(2) Evaluation Criteria - 75 Points Max",null,null,null,null,null,null,null,null,null,null,null,null,null,null,null,null,null,null,null,null,null,null,null,null,null,null,null,null,null,null,null,null,null,null,null,{"$f":"AK10+AK11","v":0}]
["(A) Community Need: Select the rate (percentage) of households experiencing the most severe housing need according to the most recent HUD CHAS dataset in the Applicant Local Government - 30 points max",null,null,null,null,null,null,null,null,null,null,null,null,null,null,null,null,null,null,null,null,null,null,null,null,null,null,null,null,null,null,null,null,null,null,null,{"$f":"IF(AI10=\"\",0,IF(AI10>=0.36,30,IF(AI10>=0.2,20,10)))","v":0}]
["(B) Applicant Administrative Experience: (i) (i) Applicants with prior experience in the past five years from the NOFA date administering local, state or federal affordable housing or community development programs or who have entered into a contract with an entity with prior experience in the past five years from the NOFA date in the implementation of local, state, or federal affordable housing or community development programs - 15 points max ",null,null,null,null,null,null,null,null,null,null,null,null,null,null,null,null,null,null,null,null,null,null,null,null,null,null,null,null,null,null,null,null,null,null,null,{"$f":"IF(AM11>=9,15,IF(AM11>=6,10,IF(AM11>=3,5,0)))","v":0},null,{"$f":"SUM(AM13:AM24)","v":0}]
["Name of Affordable Housing or Community Development Program",null,null,null,null,null,null,null,null,null,null,"Program Type",null,null,"Program Description",null,null,null,null,null,null,null,null,null,"Who Administers the Program",null,null,null,null,"If Contracted with an Entity, enter Entity Name",null,null,null,null,null,"Date Completed",null,null,"2020-08-31",{"$f":"DATE(YEAR(AM12)-5,MONTH(AM12),DAY(AM12))","v":"2015-08-31"}]
[1,null,null,null,null,null,null,null,null,null,null,null,null,null,null,null,null,null,null,null,null,null,null,null,null,null,null,null,null,null,null,null,null,null,null,null,null,null,{"$f":"IF(AND(B13<>\"\",O13<>\"\",AJ13<>\"\"),1,0)","v":0}]
[2,null,null,null,null,null,null,null,null,null,null,null,null,null,null,null,null,null,null,null,null,null,null,null,null,null,null,null,null,null,null,null,null,null,null,null,null,null,{"$f":"IF(AND(B14<>\"\",O14<>\"\",AJ14<>\"\"),1,0)","v":0}]
[3,null,null,null,null,null,null,null,null,null,null,null,null,null,null,null,null,null,null,null,null,null,null,null,null,null,null,null,null,null,null,null,null,null,null,null,null,null,0]
[4,null,null,null,null,null,null,null,null,null,null,null,null,null,null,null,null,null,null,null,null,null,null,null,null,null,null,null,null,null,null,null,null,null,null,null,null,null,0]
[5,null,null,null,null,null,null,null,null,null,null,null,null,null,null,null,null,null,null,null,null,null,null,null,null,null,null,null,null,null,null,null,null,null,null,null,null,null,0]
[6,null,null,null,null,null,null,null,null,null,null,null,null,null,null,null,null,null,null,null,null,null,null,null,null,null,null,null,null,null,null,null,null,null,null,null,null,null,0]
[7,null,null,null,null,null,null,null,null,null,null,null,null,null,null,null,null,null,null,null,null,null,null,null,null,null,null,null,null,null,null,null,null,null,null,null,null,null,0]
[8,null,null,null,null,null,null,null,null,null,null,null,null,null,null,null,null,null,null,null,null,null,null,null,null,null,null,null,null,null,null,null,null,null,null,null,null,null,0]
[9,null,null,null,null,null,null,null,null,null,null,null,null,null,null,null,null,null,null,null,null,null,null,null,null,null,null,null,null,null,null,null,null,null,null,null,null,null,0]
[10,null,null,null,null,null,null,null,null,null,null,null,null,null,null,null,null,null,null,null,null,null,null,null,null,null,null,null,null,null,null,null,null,null,null,null,null,null,0]
[11,null,null,null,null,null,null,null,null,null,null,null,null,null,null,null,null,null,null,null,null,null,null,null,null,null,null,null,null,null,null,null,null,null,null,null,null,null,0]
[12,null,null,null,null,null,null,null,null,null,null,null,null,null,null,null,null,null,null,null,null,null,null,null,null,null,null,null,null,null,null,null,null,null,null,null,null,null,0]
["(C) Demonstrated Capacity: 30 points max",null,null,null,null,null,null,null,null,null,null,null,null,null,null,null,null,null,null,null,null,null,null,null,null,null,null,null,null,null,null,null,null,null,null,null,{"$f":"MAX(AK26,AK37,AK46)","v":0}]
["(i)(a) Sponsor experience in affordable housing development and ownership in the past five years from the NOFA date - 30 points max; OR",null,null,null,null,null,null,null,null,null,null,null,null,null,null,null,null,null,null,null,null,null,null,null,null,null,null,null,null,null,null,null,null,null,null,null,{"$f":"IF(AM27>=6,30,IF(AM27>=4,20,IF(AM27>=2,10,0)))","v":0}]
["Name of Affordable Rental Housing Development",null,null,null,null,null,null,null,null,null,null,"Project Address and City",null,null,null,null,null,null,null,null,"Currently owned by the Co-Applicant",null,null,null,null,null,"Had comprehensive development responsibilities",null,null,null,null,null,"Project Units",null,null,"Date Completed",null,null,{"$f":"SUM(AM28:AM35)","v":0}]
[1,null,null,null,null,null,null,null,null,null,null,null,null,null,null,null,null,null,null,null,null,null,null,null,null,null,null,null,null,null,null,null,null,null,null,null,null,null,{"$f":"IF(AND(U28=\"Yes\",AA28=\"Yes\",AJ28<>\"\"),1,0)","v":0}]
[2,null,null,null,null,null,null,null,null,null,null,null,null,null,null,null,null,null,null,null,null,null,null,null,null,null,null,null,null,null,null,null,null,null,null,null,null,null,{"$f":"IF(AND(U29=\"Yes\",AA29=\"Yes\",AJ29<>\"\"),1,0)","v":0}]
[3,null,null,null,null,null,null,null,null,null,null,null,null,null,null,null,null,null,null,null,null,null,null,null,null,null,null,null,null,null,null,null,null,null,null,null,null,null,{"$f":"IF(AND(U30=\"Yes\",AA30=\"Yes\",AJ30<>\"\"),1,0)","v":0}]
[4,null,null,null,null,null,null,null,null,null,null,null,null,null,null,null,null,null,null,null,null,null,null,null,null,null,null,null,null,null,null,null,null,null,null,null,null,null,{"$f":"IF(AND(U31=\"Yes\",AA31=\"Yes\",AJ31<>\"\"),1,0)","v":0}]
[5,null,null,null,null,null,null,null,null,null,null,null,null,null,null,null,null,null,null,null,null,null,null,null,null,null,null,null,null,null,null,null,null,null,null,null,null,null,0]
[6,null,null,null,null,null,null,null,null,null,null,null,null,null,null,null,null,null,null,null,null,null,null,null,null,null,null,null,null,null,null,null,null,null,null,null,null,null,0]
[7,null,null,null,null,null,null,null,null,null,null,null,null,null,null,null,null,null,null,null,null,null,null,null,null,null,null,null,null,null,null,null,null,null,null,null,null,null,0]
[8,null,null,null,null,null,null,null,null,null,null,null,null,null,null,null,null,null,null,null,null,null,null,null,null,null,null,null,null,null,null,null,null,null,null,null,null,null,0]
["File Name:",null,null,"RHD Comp1, RHD Comp2, RHD Comp3, etc…",null,null,null,null,null,null,null,"Document with Notice of Completion, Placed in Service, Certificate of Occupancy or equivalent.",null,null,null,null,null,null,null,null,null,null,null,null,null,null,null,null,null,null,null,"Saved on USB?"]
["(i)(b) Navigation center development and ownership experience of Applicant or Co-Applicant (for development and operation of these facilities) in the past five years from the NOFA date - 30 points max; OR",null,null,null,null,null,null,null,null,null,null,null,null,null,null,null,null,null,null,null,null,null,null,null,null,null,null,null,null,null,null,null,null,null,null,null,{"$f":"IF(AM38=3,30,IF(AM38=4,30,IF(AM38=5,30,IF(AM38=2,20,IF(AM38=1,10,0)))))","v":0}]
["Name of Navigation Center",null,null,null,null,null,null,null,null,null,null,"Project Address and City",null,null,null,null,null,null,null,null,"Currently operated by the Applicant or Co-Applicant",null,null,null,null,null,"Had comprehensive development responsibilities",null,null,null,null,null,"Project Beds",null,null,"Date Completed",null,null,{"$f":"SUM(AM39:AM43)","v":0}]
[1,null,null,null,null,null,null,null,null,null,null,null,null,null,null,null,null,null,null,null,null,null,null,null,null,null,null,null,null,null,null,null,null,null,null,null,null,null,{"$f":"IF(AND(U39=\"Yes\",AA39=\"Yes\",AJ39<>\"\"),1,0)","v":0}]
[2,null,null,null,null,null,null,null,null,null,null,null,null,null,null,null,null,null,null,null,null,null,null,null,null,null,null,null,null,null,null,null,null,null,null,null,null,null,{"$f":"IF(AND(U40=\"Yes\",AA40=\"Yes\",AJ40<>\"\"),1,0)","v":0}]
[3,null,null,null,null,null,null,null,null,null,null,null,null,null,null,null,null,null,null,null,null,null,null,null,null,null,null,null,null,null,null,null,null,null,null,null,null,null,{"$f":"IF(AND(U41=\"Yes\",AA41=\"Yes\",AJ41<>\"\"),1,0)","v":0}]
[4,null,null,null,null,null,null,null,null,null,null,null,null,null,null,null,null,null,null,null,null,null,null,null,null,null,null,null,null,null,null,null,null,null,null,null,null,null,{"$f":"IF(AND(U42=\"Yes\",AA42=\"Yes\",AJ42<>\"\"),1,0)","v":0}]
[5,null,null,null,null,null,null,null,null,null,null,null,null,null,null,null,null,null,null,null,null,null,null,null,null,null,null,null,null,null,null,null,null,null,null,null,null,null,{"$f":"IF(AND(U43=\"Yes\",AA43=\"Yes\",AJ43<>\"\"),1,0)","v":0}]
["File Name:",null,null,"NC1, NC2, NC3",null,null,null,null,null,null,null,"Narrative description of Development/Operating Experience to document experience for each project listed above.",null,null,null,null,null,null,null,null,null,null,null,null,null,null,null,null,null,null,null,"Saved on USB?"]
["File Name:",null,null,"NC Comp1, NC Comp2, NC Comp3, etc…",null,null,null,null,null,null,null,"Document with Notice of Completion, Placed in Service, Certificate of Occupancy or equivalent.",null,null,null,null,null,null,null,null,null,null,null,null,null,null,null,null,null,null,null,"Saved on USB?"]
["(i)(c) Program Operator experience (for non-development Activities) in the past five years from the NOFA date - 30 points max",null,null,null,null,null,null,null,null,null,null,null,null,null,null,null,null,null,null,null,null,null,null,null,null,null,null,null,null,null,null,null,null,null,null,null,{"$f":"IF(AO46>=9,30,IF(AN46+AO46>=6,20,IF(AM46+AN46+AO46>=3,10,0)))","v":0},null,{"$f":"SUM(AM48:AM59)","v":0},{"$f":"SUM(AN48:AN59)","v":0},{"$f":"SUM(AO48:AO59)","v":0}]
["Name and Description of Program that Applicant or Co-Applicant has Operated",null,null,null,null,null,null,null,null,null,null,null,null,null,null,null,null,null,null,null,null,null,null,"Program Address and City",null,null,null,null,null,null,null,null,"Total Program Funding Amount",null,null,null,null,null,"Less than $750,000","Between $750,000 and $1,000,000","More than $1,000,000"]
[1,null,null,null,null,null,null,null,null,null,null,null,null,null,null,null,null,null,null,null,null,null,null,null,null,null,null,null,null,null,null,null,null,null,null,null,null,null,{"$f":"IF(AND(B48<>\"\",AG48=$AM$47),1,0)","v":0},{"$f":"IF(AND(B48<>\"\",AG48=$AN$47),1,0)","v":0},{"$f":"IF(AND(B48<>\"\",AG48=$AO$47),1,0)","v":0}]
[2,null,null,null,null,null,null,null,null,null,null,null,null,null,null,null,null,null,null,null,null,null,null,null,null,null,null,null,null,null,null,null,null,null,null,null,null,null,{"$f":"IF(AND(B49<>\"\",AG49=$AM$47),1,0)","v":0},{"$f":"IF(AND(B49<>\"\",AG49=$AN$47),1,0)","v":0},{"$f":"IF(AND(B49<>\"\",AG49=$AO$47),1,0)","v":0}]
[3,null,null,null,null,null,null,null,null,null,null,null,null,null,null,null,null,null,null,null,null,null,null,null,null,null,null,null,null,null,null,null,null,null,null,null,null,null,0,0,0]
[4,null,null,null,null,null,null,null,null,null,null,null,null,null,null,null,null,null,null,null,null,null,null,null,null,null,null,null,null,null,null,null,null,null,null,null,null,null,0,0,0]
[5,null,null,null,null,null,null,null,null,null,null,null,null,null,null,null,null,null,null,null,null,null,null,null,null,null,null,null,null,null,null,null,null,null,null,null,null,null,0,0,0]
[6,null,null,null,null,null,null,null,null,null,null,null,null,null,null,null,null,null,null,null,null,null,null,null,null,null,null,null,null,null,null,null,null,null,null,null,null,null,0,0,0]
[7,null,null,null,null,null,null,null,null,null,null,null,null,null,null,null,null,null,null,null,null,null,null,null,null,null,null,null,null,null,null,null,null,null,null,null,null,null,0,0,0]
[8,null,null,null,null,null,null,null,null,null,null,null,null,null,null,null,null,null,null,null,null,null,null,null,null,null,null,null,null,null,null,null,null,null,null,null,null,null,{"$f":"IF(AND(B55<>\"\",AG55=$AM$47),1,0)","v":0},{"$f":"IF(AND(B55<>\"\",AG55=$AN$47),1,0)","v":0},{"$f":"IF(AND(B55<>\"\",AG55=$AO$47),1,0)","v":0}]
[9,null,null,null,null,null,null,null,null,null,null,null,null,null,null,null,null,null,null,null,null,null,null,null,null,null,null,null,null,null,null,null,null,null,null,null,null,null,0,0,0]
[10,null,null,null,null,null,null,null,null,null,null,null,null,null,null,null,null,null,null,null,null,null,null,null,null,null,null,null,null,null,null,null,null,null,null,null,null,null,0,0,0]
[11,null,null,null,null,null,null,null,null,null,null,null,null,null,null,null,null,null,null,null,null,null,null,null,null,null,null,null,null,null,null,null,null,null,null,null,null,null,0,0,0]
[12,null,null,null,null,null,null,null,null,null,null,null,null,null,null,null,null,null,null,null,null,null,null,null,null,null,null,null,null,null,null,null,null,null,null,null,null,null,0,0,0]
["File Name:",null,null,"Operator1, Operator2, Operator3, etc.",null,null,null,null,null,null,null,"Narrative description of Program Operating Experience to document experience for each program listed above.",null,null,null,null,null,null,null,null,null,null,null,null,null,null,null,null,null,null,null,"Saved on USB?"]

{"sheet":"Appplication Support","index":12,"n_rows":31,"n_cols":40,"rows_kept":31,"cut":false,"hidden":false,"merged":[[30,29,30,31],[30,32,30,34],[30,35,30,37],[30,0,30,1],[30,2,30,4],[30,5,30,8],[30,9,30,14],[30,15,30,16],[30,17,30,28],[29,0,29,1],[29,2,29,4],[29,5,29,8],[29,9,29,14],[29,15,29,16],[29,17,29,28],[29,29,29,31],[29,32,29,34],[29,35,29,37],[28,0,28,1],[28,2,28,4],[28,5,28,8],[28,9,28,14],[28,15,28,16],[28,17,28,28],[28,29,28,31],[28,32,28,34],[28,35,28,37],[26,29,26,31],[26,32,26,34],[26,35,26,37],[27,0,27,1],[27,2,27,4],[27,5,27,8],[27,9,27,14],[27,15,27,16],[27,17,27,28],[27,29,27,31],[26,0,26,1],[26,2,26,4],[26,5,26,8],[26,9,26,14],[26,15,26,16],[26,17,26,28],[27,32,27,34],[27,35,27,37],[25,0,25,1],[25,2,25,4],[25,5,25,8],[25,9,25,14],[25,15,25,16],[25,17,25,28],[25,29,25,31],[25,32,25,34],[25,35,25,37],[24,0,24,1],[24,2,24,4],[24,5,24,8],[24,9,24,14],[24,15,24,16],[24,17,24,28],[24,29,24,31],[24,32,24,34],[24,35,24,37],[22,29,22,31],[22,32,22,34],[22,35,22,37],[23,0,23,1],[23,2,23,4],[23,5,23,8],[23,9,23,14],[23,15,23,16],[23,17,23,28],[23,29,23,31],[22,0,22,1],[22,2,22,4],[22,5,22,8],[22,9,22,14],[22,15,22,16],[22,17,22,28],[23,32,23,34],[23,35,23,37],[21,0,21,1],[21,2,21,4],[21,5,21,8],[21,9,21,14],[21,15,21,16],[21,17,21,28],[21,29,21,31],[21,32,21,34],[21,35,21,37],[20,0,20,1],[20,2,20,4],[20,5,20,8],[20,9,20,14],[20,15,20,16],[20,17,20,28],[20,29,20,31],[20,32,20,34],[20,35,20,37],[18,29,18,31],[18,32,18,34],[18,35,18,37],[19,0,19,1],[19,2,19,4],[19,5,19,8],[19,9,19,14],[19,15,19,16],[19,17,19,28],[19,29,19,31],[18,0,18,1],[18,2,18,4],[18,5,18,8],[18,9,18,14],[18,15,18,16],[18,17,18,28],[19,32,19,34],[19,35,19,37],[17,0,17,1],[17,2,17,4],[17,5,17,8],[17,9,17,14],[17,15,17,16],[17,17,17,28],[17,29,17,31],[17,32,17,34],[17,35,17,37],[16,0,16,1],[16,2,16,4],[16,5,16,8],[16,9,16,14],[16,15,16,16],[16,17,16,28],[16,29,16,31],[16,32,16,34],[16,35,16,37],[14,29,14,31],[14,32,14,34],[14,35,14,37],[15,0,15,1],[15,2,15,4],[15,5,15,8],[15,9,15,14],[15,15,15,16],[15,17,15,28],[15,29,15,31],[14,0,14,1],[14,2,14,4],[14,5,14,8],[14,9,14,14],[14,15,14,16],[14,17,14,28],[15,32,15,34],[15,35,15,37],[13,0,13,1],[13,2,13,4],[13,5,13,8],[13,9,13,14],[13,15,13,16],[13,17,13,28],[13,29,13,31],[13,32,13,34],[13,35,13,37],[12,0,12,1],[12,2,12,4],[12,5,12,8],[12,9,12,14],[12,15,12,16],[12,17,12,28],[12,29,12,31],[12,32,12,34],[12,35,12,37],[10,29,10,31],[10,32,10,34],[10,35,10,37],[11,0,11,1],[11,2,11,4],[11,5,11,8],[11,9,11,14],[11,15,11,16],[11,17,11,28],[11,29,11,31],[10,0,10,1],[10,2,10,4],[10,5,10,8],[10,9,10,14],[10,15,10,16],[10,17,10,28],[11,32,11,34],[11,35,11,37],[9,0,9,1],[9,2,9,4],[9,5,9,8],[9,9,9,14],[9,15,9,16],[9,17,9,28],[9,29,9,31],[9,32,9,34],[9,35,9,37],[8,0,8,1],[8,2,8,4],[8,5,8,8],[8,9,8,14],[8,15,8,16],[8,17,8,28],[8,29,8,31],[8,32,8,34],[8,35,8,37],[6,29,6,31],[6,32,6,34],[6,35,6,37],[7,0,7,1],[7,2,7,4],[7,5,7,8],[7,9,7,14],[7,15,7,16],[7,17,7,28],[7,29,7,31],[6,0,6,1],[6,2,6,4],[6,5,6,8],[6,9,6,14],[6,15,6,16],[6,17,6,28],[7,32,7,34],[7,35,7,37],[4,0,4,37],[5,0,5,1],[5,2,5,4],[5,5,5,8],[5,9,5,14],[5,15,5,16],[5,17,5,28],[5,29,5,31],[5,32,5,34],[5,35,5,37],[3,0,3,3],[3,4,3,14],[3,15,3,16],[3,17,3,27],[3,28,3,31],[3,32,3,37],[0,0,0,34],[0,35,0,37],[1,0,1,37],[2,0,2,2],[2,3,2,21],[2,22,2,25],[2,26,2,29],[2,30,2,33],[2,34,2,37]]}
["Application Development Team (ADT) Support Form",null,null,null,null,null,null,null,null,null,null,null,null,null,null,null,null,null,null,null,null,null,null,null,null,null,null,null,null,null,null,null,null,null,null,{"$f":"'PLHA Coverpage'!A46","v":"Rev. 9/14/20"}]
["For application related issues/questions only complete the \"yellow\" cells in the form below and email a copy to: AppSupport@hcd.ca.gov. A member of the Application Development Team will respond to your request ASAP. "]
["Full Name:",null,null,null,null,null,null,null,null,null,null,null,null,null,null,null,null,null,null,null,null,null,"Date Requested:",null,null,null,null,null,null,null,"Application Version Date:"]
["Organization:",null,null,null,null,null,null,null,null,null,null,null,null,null,null,"Email:",null,null,null,null,null,null,null,null,null,null,null,null,"Contact Phone:"]
["Justification:",null,null,null,null,null,null,null,null,null,null,null,null,null,null,null,null,null,null,null,null,null,null,null,null,null,null,null,null,null,null,null,null,null,null,null,null,null,null,"PLHA Coverpage"]
["Issue #",null,"Program Name & Round",null,null,"Tab",null,null,null,"Section",null,null,null,null,null,"Cell#",null,"Update/Comment",null,null,null,null,null,null,null,null,null,null,null,"Urgency ",null,null,"ADT Status",null,null,"Status Date",null,null,null,"Overview"]
[1,null,null,null,null,null,null,null,null,null,null,null,null,null,null,null,null,null,null,null,null,null,null,null,null,null,null,null,null,null,null,null,null,null,null,null,null,null,null,"Legislative Contacts "]
[2,null,null,null,null,null,null,null,null,null,null,null,null,null,null,null,null,null,null,null,null,null,null,null,null,null,null,null,null,null,null,null,null,null,null,null,null,null,null,"Annual Operating Budget"]
[3,null,null,null,null,null,null,null,null,null,null,null,null,null,null,null,null,null,null,null,null,null,null,null,null,null,null,null,null,null,null,null,null,null,null,null,null,null,null,"Development Info"]
[4,null,null,null,null,null,null,null,null,null,null,null,null,null,null,null,null,null,null,null,null,null,null,null,null,null,null,null,null,null,null,null,null,null,null,null,null,null,null,"Rental Development Team"]
[5,null,null,null,null,null,null,null,null,null,null,null,null,null,null,null,null,null,null,null,null,null,null,null,null,null,null,null,null,null,null,null,null,null,null,null,null,null,null,"Dev Budget - Navigation Center"]
[6,null,null,null,null,null,null,null,null,null,null,null,null,null,null,null,null,null,null,null,null,null,null,null,null,null,null,null,null,null,null,null,null,null,null,null,null,null,null,"Env & Land Use"]
[7,null,null,null,null,null,null,null,null,null,null,null,null,null,null,null,null,null,null,null,null,null,null,null,null,null,null,null,null,null,null,null,null,null,null,null,null,null,null,"Certification & Legal"]
[8,null,null,null,null,null,null,null,null,null,null,null,null,null,null,null,null,null,null,null,null,null,null,null,null,null,null,null,null,null,null,null,null,null,null,null,null,null,null,"Selection Criteria - Scoring"]
[9,null,null,null,null,null,null,null,null,null,null,null,null,null,null,null,null,null,null,null,null,null,null,null,null,null,null,null,null,null,null,null,null,null,null,null,null,null,null,"Appplication Support"]
[10]
[11]
[12]
[13]
[14]
[15]
[16]
[17]
[18]
[19]
[20]
[21]
[22]
[23]
[24]
[25]

{"sheet":"DATA","index":13,"n_rows":188,"n_cols":4,"rows_kept":188,"cut":false,"hidden":true,"merged":[]}
["Nonentitlement","Entitlement","Counties ",0.01]
["Alpine County","Alameda","Alameda",0.02]
["Alturas","Alhambra","Alpine",0.03]
["Amador City","Aliso Viejo","Amador",0.04]
["Amador County","Anaheim","Butte",0.05]
["American Canyon","Antioch","Calaveras",0.06]
["Anderson","Apple Valley","Colusa",7.0000000000000007E-2]
["Angels","Bakersfield","Contra Costa",0.08]
["Arcata","Baldwin Park","Del Norte",0.09]
["Artesia","Bellflower","El Dorado",0.1]
["Arvin","Berkeley","Fresno",0.11]
["Atwater","Buena Park","Glenn",0.12]
["Auburn","Burbank","Humboldt",0.13]
["Avenal","Camarillo","Imperial",0.14000000000000001]
["Benicia","Carlsbad","Inyo",0.15]
["Biggs","Carson","Kern",0.16]
["Bishop","Cathedral City","Kings",0.17]
["Blue Lake","Cerritos","Lake",0.18]
["Brawley","Chico","Lassen",0.19]
["Butte County","Chino","Los Angeles",0.2]
["Calaveras County","Chino Hills","Madera",0.21]
["Calexico","Chula Vista","Marin",0.22]
["Calimesa","Citrus Heights","Mariposa",0.23]
["Calipatria","Clovis City","Mendocino",0.24]
["Calistoga","Compton","Merced",0.25]
["Capitola","Concord","Modoc",0.26]
["Carmel-by-the-Sea","Corona","Mono",0.27]
["Chowchilla","Costa Mesa","Monterey",0.28000000000000003]
["Clearlake","Cupertino City","Napa",0.28999999999999998]
["Coalinga","Daly City","Nevada",0.3]
["Colfax","Davis","Orange",0.31]
["Colusa","Delano City","Placer",0.32]
["Colusa County","Downey","Plumas",0.33]
["Corcoran","El Cajon","Riverside",0.34]
["Corning","El Centro","Sacramento",0.35]
["Crescent City","Elk Grove","San Benito",0.36]
["Del Norte County","El Monte","San Bernardino",0.37]
["Dinuba","Encinitas","San Diego",0.38]
["Dixon","Escondido","San Francisco",0.39]
["Dorris","Fairfield","San Joaquin",0.4]
["Dos Palos","Fontana","San Luis Obispo",0.41]
["Dunsmuir","Fountain Valley","San Mateo",0.42]
["El Centro","Fremont","Santa Barbara",0.43]
["El Dorado County","Fresno","Santa Clara",0.44]
["Etna","Fullerton","Santa Cruz",0.45]
["Eureka","Gardena","Shasta",0.46]
["Exeter","Garden Grove","Sierra",0.47]
["Farmersville","Gilroy City","Siskiyou",0.48]
["Ferndale","Glendale","Solano",0.49]
["Firebaugh","Glendora City","Sonoma",0.5]
["Fort Bragg","Goleta","Stanislaus"]
["Fort Jones","Hanford","Sutter"]
["Fortuna","Hawthorne","Tehama"]
["Fowler","Hayward","Trinity"]
["Glenn County","Hemet","Tulare"]
["Grass Valley","Hesperia","Tuolumne"]
["Greenfield","Huntington Beach","Ventura"]
["Gridley","Huntington Park","Yolo"]
["Grover Beach","Indio City","Yuba"]
["Guadalupe","Inglewood"]
["Gustine","Irvine"]
["Hidden Hills","Laguna Niguel"]
["Hollister","La Habra"]
["Holtville","Lake Forest"]
["Humboldt County","Lake Elsinore"]
["Huron","Lakewood"]
["Imperial","La Mesa"]
["Imperial County","Lancaster"]
["Indian Wells","Livermore"]
["Industry","Lodi"]
["Inyo County","Lompoc"]
["Ione","Long Beach"]
["Jackson","Los Angeles"]
["King City","Lynwood"]
["Kings County","Madera"]
["Lake County","Menifee"]
["Lakeport","Merced"]
["Lassen County","Milpitas City"]
["Lemoore","Mission Viejo"]
["Lincoln","Modesto"]
["Lindsay","Montebello"]
["Live Oak","Monterey"]
["Livingston","Monterey Park"]
["Loomis","Moreno Valley"]
["Los Banos","Mountain View"]
["Loyalton","Napa City"]
["Madera County","National City"]
["Mammoth Lakes","Newport Beach"]
["Maricopa","Norwalk"]
["Marina","Oakland"]
["Mariposa County","Oceanside"]
["Marysville","Ontario"]
["McFarland","Orange"]
["Mendocino County","Oxnard"]
["Merced County","Palmdale"]
["Modoc County","Palm Desert"]
["Mono County","Palm Springs"]
["Montague","Palo Alto"]
["Mount Shasta","Paradise"]
["Napa County","Paramount City"]
["Nevada City","Pasadena"]
["Nevada County","Perris City"]
["Orange Cove","Petaluma"]
["Orland","Pico Rivera"]
["Oroville","Pittsburg"]
["Pacific Grove","Placentia"]
["Palos Verdes Estates","Pleasanton City"]
["Parlier","Pomona"]
["Pismo Beach","Porterville"]
["Placer County","Rancho Cordova City"]
["Placerville","Rancho Cucamonga"]
["Plumas County","Rancho Santa Margarita"]
["Plymouth","Redding"]
["Point Arena","Redondo Beach"]
["Portola","Redwood City"]
["Rancho Mirage","Rialto"]
["Red Bluff","Riverside"]
["Rio Dell","Rocklin City"]
["Rio Vista","Rosemead"]
["Riverbank","Roseville"]
["San Benito County","Sacramento"]
["San Joaquin","Salinas"]
["San Juan Bautista","San Bernardino"]
["San Juan Capistrano","San Clemente"]
["Sand City","San Diego"]
["Santa Cruz County","San Francisco"]
["Scotts Valley","San Jose"]
["Shasta County","San Leandro"]
["Shasta Lake","San Marcos City"]
["Sierra County","San Mateo"]
["Siskiyou County","Santa Ana"]
["Solano County","Santa Barbara"]
["Soledad","Santa Clara"]
["Sonora","Santa Clarita"]
["South Lake Tahoe","Santa Cruz"]
["St. Helena","Santa Maria"]
["Suisun City","Santa Monica"]
["Susanville","Santa Rosa"]
["Sutter County","Santee"]
["Sutter Creek","Seaside"]
["Taft","Simi Valley"]
["Tehama","South Gate"]
["Tehama County","South San Francisco"]
["Trinidad","Stockton"]
["Trinity County","Sunnyvale"]
["Truckee","Temecula"]
["Tulare County","Thousand Oaks"]
["Tulelake","Torrance"]
["Tuolumne County","Tulare"]
["Ukiah","Turlock"]
["Vernon","Tustin"]
["Wasco","Union City"]
["Weed","Upland"]
["Westmorland","Vacaville"]
["Wheatland","Vallejo"]
["Williams","San Buenaventura"]
["Willits","Victorville"]
["Willows","Visalia"]
["Winters","Vista"]
["Woodlake","Walnut Creek"]
["Yolo County","Watsonville"]
["Yountville","West Covina"]
["Yreka","Westminster"]
["Yuba County","West Sacramento"]
[null,"Whittier"]
[null,"Woodland"]
[null,"Yorba Linda"]
[null,"Yuba City"]
[null,"Alameda County"]
[null,"Contra Costa County"]
[null,"Fresno County"]
[null,"Kern County"]
[null,"Los Angeles County"]
[null,"Marin County"]
[null,"Monterey County"]
[null,"Orange County"]
[null,"Riverside County"]
[null,"Sacramento County"]
[null,"San Bernardino County"]
[null,"San Diego County"]
[null,"San Joaquin County"]
[null,"San Luis Obispo County"]
[null,"San Mateo County"]
[null,"Santa Barbara County"]
[null,"Santa Clara County"]
[null,"Sonoma County"]
[null,"Stanislaus County"]
[null,"Ventura County"]